{"text_format":"1","workbook":"xlsx","n_sheets":18,"sheets":["LF description","Waste description","Environmental form","Social form","Technical form","Economical form","Additional Information","RDM","Results","Comment Report","Waste description parameters","Results by category","Environmental indicators","Social indicators","Technical indicators","Economical indicators","ELIF RAW DATA","Import Cedalion site visit"],"not_rendered":{"charts":5,"images":7,"macros":1,"external_links":2,"defined_names":0,"comments":11,"pivot_tables":0},"unopened":[],"bounds":{"document_bytes":16777216,"sheet_cells":100000,"rows_first":2000,"rows_last":500,"rows_between":2000,"halvings":0,"cell_chars":16384,"cell_head_chars":4096},"cells_cut":0,"cells_raw":0,"read":"whole","date_system":"1900"}

{"sheet":"LF description","index":0,"n_rows":29,"n_cols":6,"rows_kept":29,"cut":false,"hidden":false,"merged":[[32,5,32,7],[33,5,33,7],[34,5,34,7],[35,5,35,7],[36,5,36,7],[25,5,25,7],[26,5,26,7],[27,5,27,7],[28,5,29,7],[30,5,31,7],[11,5,11,7],[19,5,19,7],[22,5,23,7],[24,5,24,7],[12,5,12,7],[13,5,13,7],[14,5,14,7],[16,5,16,7],[17,5,17,7],[18,5,18,7],[7,3,10,3],[7,5,7,7],[8,5,8,7],[9,5,9,7],[10,5,10,7]]}
[null,null,"LF number : ",1]
[]
[null,null,null,"= Field to complete "]
[null,null,"*","= Field used in Cedalion"]
[]
[{"$f":" _xlfn.CONCAT(\"LANDFILL \",D1)","v":"LANDFILL 1"}]
[null,null,null,null,null,"User's notes"]
["Name* :",{"$f":"_xlfn.CONCAT(\"LF\",D1,\" Name\")","v":"LF1 Name"},"Land plot codes :"]
["Other name 1 :"]
["Other name 2 :"]
["Other name 3 :"]
["Ref :"]
["Country :"]
["City : "]
["Postal Code* :"]
["Street* : ",null,"N°*: "]
["Code NUTS"]
["X (WGS 84)* :"]
["Y (WGS 84)* :"]
["Site area [Ha] :"]
["Administration in charge :"]
[]
["Current ownership : "]
[null,"Name","Public/private"]
["Owner 1 :"]
["Owner 2 :"]
["Owner 3 :"]
["Owner 4 :"]
["Owner 5 :"]

{"sheet":"Waste description","index":1,"n_rows":97,"n_cols":12,"rows_kept":97,"cut":false,"hidden":false,"merged":[[6,5,6,7],[5,5,5,7],[52,0,52,10],[55,0,55,10],[54,0,54,10],[53,0,53,10],[51,0,51,10],[26,4,26,7],[24,4,24,7],[23,4,23,7],[22,4,22,7],[21,4,21,7],[19,4,19,7],[18,4,18,7],[17,4,17,7],[16,4,16,7],[15,4,15,7],[14,4,14,7],[13,4,13,7],[12,4,12,7],[31,11,31,13],[32,11,32,13],[33,11,33,13],[34,11,34,13],[35,11,35,13],[36,11,36,13],[42,11,42,13],[46,11,46,13],[48,11,48,13],[37,11,37,13],[38,11,38,13],[39,11,39,13],[40,11,40,13],[41,11,41,13],[43,11,43,13],[44,11,44,13],[45,11,45,13],[61,2,61,3],[62,2,62,3],[63,2,63,3],[64,2,64,3],[65,2,65,3],[66,2,66,3],[67,2,67,3],[68,2,68,3],[69,2,69,3],[70,2,70,3],[71,2,71,3],[72,2,72,3],[73,2,73,3],[74,1,74,3],[88,1,88,2],[94,4,94,7],[95,4,95,7],[96,4,96,7],[90,1,90,2],[61,4,61,7],[62,4,62,7],[63,4,63,7],[64,4,64,7],[65,4,65,7],[66,4,66,7],[67,4,67,7],[68,4,68,7],[69,4,69,7],[70,4,70,7],[71,4,71,7],[72,4,72,7],[88,4,88,7],[90,4,90,7],[91,4,91,7],[92,4,92,7],[93,4,93,7],[58,4,58,7],[59,4,60,7],[85,4,85,7],[86,4,86,7],[87,4,87,7],[82,4,83,7],[76,4,76,7],[77,4,77,7],[78,4,78,7],[79,4,79,7],[80,4,81,7],[73,4,74,7],[75,4,75,7]]}
[null,null,"Legend"]
[null,null,null,"= Desactivated fields"]
[null,null,null,"= Field to complete"]
[null,null,"*","= Field used in Cedalion"]
[]
["Total surface of the site* : ",null,"m²","Data source :"]
["Surface occupied by waste : ",null,"m²","Data source :"]
["Total Waste Volume* : ",null,"m³"]
["Type of waste description :",null,null,"Value of the waste materials :",null,{"$f":"IF('Waste description parameters'!C2 = 2,K50,'Waste description'!D28)","v":1}]
[]
["Simplified waste description"]
["Waste","Weight (T)","Cost(-) or Benefit (+) per Tonne (€/T)","Total","User's notes"]
["Construction waste",1,1,{"$f":"B13*C13","v":1}]
[null,null,null,{"$f":"B14*C14","v":0}]
[null,null,null,0]
[null,null,null,0]
[null,null,null,0]
[null,null,null,0]
[null,null,null,0]
[null,null,null,0]
[null,null,null,0]
[null,null,null,0]
[null,null,null,0]
[null,null,null,0]
[null,null,null,0]
[null,"Valuable void created  (m³)","Void value (€/m³)","Total","User's notes"]
["Relandfill/void space value",null,null,{"$f":"B27*C27","v":0}]
[null,null,"Total",{"$f":"SUM(D13:D27)","v":1}]
[]
["Detailed waste description"]
["Waste","% (weight)","Volume (m³)","Density (T/m³)","Total weight (T)","Recovery factor (%)","Tonnes recovered","€ per Tonne recovered (€/T)","Evacuation cost / Tonne (€/T)","Cost (-) or Benefit (+) / Tonne (€/T)","Total","User's notes"]
["Ferrous metals",0,1,1,{"$f":"C32*D32","v":1},100,{"$f":"E32*F32/100","v":1},1,0,{"$f":"H32-I32","v":1},{"$f":"G32*J32","v":1}]
["Nonferrous metals",0,null,null,{"$f":"C33*D33","v":0},null,{"$f":"E33*F33/100","v":0},null,null,{"$f":"H33-I33","v":0},{"$f":"G33*J33","v":0}]
["Cardboard/paper",0,null,null,0,null,0,null,null,0,0]
["Plastics",0,null,null,0,null,0,null,null,0,0]
["Glass/ceramic",0,null,null,0,null,0,null,null,0,0]
["Stone/concrete",0,null,null,0,null,0,null,null,0,0]
["Rubber",0,null,null,{"$f":"C38*D38","v":0},null,0,null,null,0,0]
["Textile",0,null,null,0,null,0,null,null,0,0]
["Wood",0,null,null,0,null,0,null,null,0,0]
["Organic",0,null,null,0,null,0,null,null,0,0]
["Hazardous waste",0,null,null,0,null,0,null,null,0,0]
["Fine matrix",0,null,null,0,null,0,null,null,0,{"$f":"G43*J43","v":0}]
["Other waste 1 :",0,null,null,0,null,0,null,null,0,{"$f":"G44*J44","v":0}]
["Other waste 2 :",0,null,null,0,null,0,null,null,0,{"$f":"G45*J45","v":0}]
["Other waste 3 :",0,null,null,0,null,0,null,null,0,{"$f":"G46*J46","v":0}]
["Other waste 4 :",0,null,null,0,null,0,null,null,0,{"$f":"G47*J47","v":0}]
["Void space",null,"Volume (m³)",null,null,null,null,null,null,"Void value (€/m³)","Total","User's notes"]
["Relandfill/void space value",null,null,null,null,null,null,null,null,null,{"$f":"J49*C49","v":0}]
["TOTAL ",{"$f":"SUM(B32:B47)/100","v":0},null,null,null,null,null,"TOTAL ",null,null,{"$f":"SUM(K32:K47)+K49","v":1}]
[]
["% is the % of the considered stream in weight, deducted from geophysical imaging, waste sampling and waste sample analysis."]
["Density is the bulk density of the waste in-situ, evaluated from geophysical imaging and lab tests."]
["The total weight (in Tonnes) is calculated as Volume x Density."]
["Tonnes (recovered) is calculated as Tonnes (total) x Recovery factor (%) of the recovery process for the given stream, which is given by this process."]
["We can fix it as 75% for all the streams at first stage, but specific values can also be fixed by the users."]
["€ per tonne recovered is the price that can be earned per tonne of waste materials."]
[null,null,null,null,"User's notes"]
["Main waste type* :"]
["Monolandfill* :"]
[]
["Specific waste stream ","%","Data quality"]
["Dredging sludge* :"]
["Construction waste* :"]
["Water purification sludge* :"]
["Gypsum :"]
["Fly ash* :"]
["Asbestos* :"]
["Slags* :"]
["Mining waste* :"]
["Lime* :"]
["Contaminated soils :"]
[{"$f":"'Economical indicators'!A172","v":"Other : …"}]
["Total",{"$f":"SUM(B63:B72)/100","v":0}]
[]
["Hazardous waste"]
["Radioactive waste* :"]
["Hazardous hospital waste* :"]
["Hazardous military waste*:",19]
["Asbestos* :"]
["Other hazardous waste :"]
[]
[{"$f":"'Economical indicators'!A202","v":"Main physical state :"}]
[]
[{"$f":"'Economical indicators'!A215","v":"Daily cover"}]
["Use of daily cover :"]
["Cover Type :"]
["% of the waste volume occupied by the cover : "]
["Origin of cover product : "]
[]
[{"$f":"'Economical indicators'!A235","v":"Waste homogeneity (for each layer)"},"Homogeneity",null,"Volume of the layer/landfill volume [%]"]
["Layer 1",null,null,0]
["Layer 2",null,null,0]
["Layer 3",null,null,0]
["Layer 4",null,null,0]
["Layer 5",null,null,0]
[null,"Total",null,{"$f":"SUM('Economical indicators'!D238:H238)","v":0}]

{"sheet":"Environmental form","index":2,"n_rows":51,"n_cols":5,"rows_kept":51,"cut":false,"hidden":false,"merged":[[50,4,50,8],[45,1,45,2],[21,4,24,8],[25,4,29,8],[41,4,42,8],[44,4,44,8],[43,4,43,8],[30,4,32,8],[27,1,28,2],[45,4,45,8],[46,4,47,8],[48,4,49,8],[33,4,33,8],[34,4,34,8],[35,4,35,8],[36,4,36,8],[7,4,7,8],[17,4,17,8],[18,4,18,8],[13,4,13,8],[14,4,14,8],[15,4,15,8],[16,4,16,8],[37,4,37,8],[38,4,38,8],[39,4,40,8],[19,4,20,8],[8,4,12,8]]}
[]
[]
[null,null,"Env. form completeness :  ",{"$f":"'Environmental indicators'!$H$1","v":0}]
[]
[]
[null,null," ENVIRONMENTAL SCORE : ",{"$f":"((D7-'Environmental indicators'!E1)/('Environmental indicators'!C1-'Environmental indicators'!E1))","v":4.7619047619047616E-2}]
["ENVIRONMENTAL ASPECT",null,"TOTAL POINTS",{"$f":"SUM(D9,D22,D26,D31,D34,D42,D44)","v":0},"User's notes"]
[]
["General Risk Evaluation",null,"Points",{"$f":"SUM(D14:D20)","v":0}]
[]
[]
[]
[]
["Flood* :","Flooding Risk level :",null,{"$f":"IF('Environmental indicators'!D4= TRUE,'Environmental indicators'!B4*OFFSET('Environmental indicators'!$B$78, 'Environmental indicators'!$D$78,0),0)","v":0}]
["Fire :",null,null,{"$f":"IF('Environmental indicators'!D5= TRUE,'Environmental indicators'!B5,0)","v":0}]
["Risk of landfill’s collapse :",null,null,{"$f":"IF('Environmental indicators'!D6= TRUE,'Environmental indicators'!B6,0)","v":0}]
["Person accident :",null,null,{"$f":"IF('Environmental indicators'!D7= TRUE,'Environmental indicators'!B7,0)","v":0}]
["Direct exposition to waste, (bio)gas and/or leachate :",null,null,"Social section"]
["Other :",null,null,{"$f":"IF('Environmental indicators'!D9= TRUE,'Environmental indicators'!B9,0)","v":0}]
["Unknown :",null,null,{"$f":"IF('Environmental indicators'!D10= TRUE,'Environmental indicators'!B10,0)","v":0}]
[]
["Specific Environmental Issue :",null,"Points",{"$f":"OFFSET('Environmental indicators'!$B$13, 'Environmental indicators'!$D$13,0)","v":0}]
["Description of the Specific Environmental Issue",null,null,"-"]
["Impact of the LFM project"]
[]
["Surface Water :",null,"Points",{"$f":"OFFSET('Environmental indicators'!$B$19, 'Environmental indicators'!$D$19,0)","v":0}]
["Analysis :"]
["Description :"]
[]
[]
["Geological context :",null,"Points",{"$f":"OFFSET('Environmental indicators'!$B$29, 'Environmental indicators'!$D$29,0)","v":0}]
["Permeability"]
[]
["Groundwater vulnerability",null,"Points",{"$f":"D35*D36+D37+D40","v":0}]
["Groundwater type (factor) :",null,"Points",{"$f":"OFFSET('Environmental indicators'!$B$36, 'Environmental indicators'!$D$36,0)","v":0}]
["Groundwater contamination :",null,"Points",{"$f":"OFFSET('Environmental indicators'!$B$40, 'Environmental indicators'!$D$40,0)","v":0}]
["Landfill included in a drinking water protection zone* :",null,"Points",{"$f":"OFFSET('Environmental indicators'!$B$49, 'Environmental indicators'!$D$49,0)","v":0}]
["Average level of upper groundwater table [meter below ground level]: ",null,null,"-"]
["Short description of the issue :",null,null,"-"]
["Landfill producing leachates :",null,null,{"$f":"OFFSET('Environmental indicators'!$B$84, 'Environmental indicators'!$D$84,0)","v":0}]
[]
["Air emission (e.g., biogas, industrial gas, dust) :",null,"Points",{"$f":"OFFSET('Environmental indicators'!$B$55, 'Environmental indicators'!D55,0)","v":0}]
[]
["Biodiversity",null,"Points",{"$f":"SUM(D45:D47)","v":0}]
["Valuable biodiversity on site : ",null,"Points",{"$f":"OFFSET('Environmental indicators'!$B$62, 'Environmental indicators'!$D$62,0)","v":0}]
["Description of the valuable biodiversity  : "]
["Site located in Natura 2000 zone* :",null,"Points",{"$f":"OFFSET('Environmental indicators'!$B$66, 'Environmental indicators'!$D$66,0)","v":0}]
[]
["Soil contamination :",null,"Points",{"$f":"OFFSET('Environmental indicators'!$B$90, 'Environmental indicators'!$D$90,0)","v":0}]
[]
["Erosion *:",null,"Points",{"$f":"OFFSET('Environmental indicators'!$B$71, 'Environmental indicators'!$D$71,0)","v":0}]

{"sheet":"Social form","index":3,"n_rows":36,"n_cols":5,"rows_kept":36,"cut":false,"hidden":false,"merged":[[34,0,34,2],[21,4,22,8],[33,4,36,8],[18,1,18,2],[35,1,35,2],[25,4,25,8],[28,4,28,8],[29,4,29,8],[30,4,30,8],[31,4,31,8],[26,4,26,8],[27,4,27,8],[12,4,13,8],[16,4,17,8],[18,4,18,8],[19,4,20,8],[8,4,8,8],[14,4,15,8],[11,4,11,8],[10,4,10,8]]}
[]
[]
[null,null,"Social form completeness :  ",{"$f":"'Social indicators'!H1","v":0}]
[]
[]
[]
[null,null,"SOCIAL SCORE : ",{"$f":"((D8-'Social indicators'!E1)/('Social indicators'!C1-'Social indicators'!E1))","v":0.12}]
["SOCIAL ASPECT",null,"TOTAL POINTS",{"$f":"SUM(D10,D17,D22,D24,D34)","v":0},"User's notes"]
[]
["General risk Evaluation",null,"Points",{"$f":"SUM(D11:D12)","v":0}]
["Severe risk for human health caused by the landfill :",null,"Points",{"$f":"IF('Environmental indicators'!D8= TRUE,'Social indicators'!B4,0)","v":0}]
["Olfactory pollution :",null,"Points",{"$f":"IF('Social indicators'!D75= TRUE,'Social indicators'!B76,0)","v":0}]
["Distance from the nearest housing  [m] :"]
[]
["Land planning :",null,null,"-"]
[]
["Current use ",null,"Points",{"$f":"D18+D20","v":0}]
["Current use of the site of the landfill, regardless its official use :",null,"Points",{"$f":"OFFSET('Social indicators'!B7,'Social indicators'!D7,0)","v":0}]
["Specifications : ",null,null,"-"]
["Presence of a touristic area nearby :",null,"Points",{"$f":"OFFSET('Social indicators'!B79,'Social indicators'!D79,0)","v":0}]
[]
["Territorial strategy aspects:",null,"Points",{"$f":"OFFSET('Social indicators'!B19,'Social indicators'!D19,0)","v":0}]
[]
["Surroundings",null,"Points",{"$f":"MAX(D26:D32)","v":0}]
["Main land use of land within a radius of 50 m around the boundaries of the landfill."]
["Natural* :",null,"Points",{"$f":"IF('Social indicators'!D27= TRUE,'Social indicators'!B27,0) + IF('Social indicators'!D28= TRUE,'Social indicators'!B28,0)","v":0}]
["Agricultural* :",null,"Points",{"$f":"IF('Social indicators'!D33= TRUE,'Social indicators'!B33,0) + IF('Social indicators'!D34= TRUE,'Social indicators'!B34,0)","v":0}]
["Forest :",null,"Points",{"$f":"IF('Social indicators'!D39= TRUE,'Social indicators'!B39,0) + IF('Social indicators'!D40= TRUE,'Social indicators'!B40,0)","v":0}]
["Residential* :",null,"Points",{"$f":"IF('Social indicators'!D45= TRUE,'Social indicators'!B45,0) + IF('Social indicators'!D46= TRUE,'Social indicators'!B46,0)","v":0}]
["Recreational/touristic* :",null,"Points",{"$f":"IF('Social indicators'!D51= TRUE,'Social indicators'!B51,0) + IF('Social indicators'!D52= TRUE,'Social indicators'!B52,0)","v":0}]
["Economical/services :",null,"Points",{"$f":"IF('Social indicators'!D57= TRUE,'Social indicators'!B57,0) + IF('Social indicators'!D58= TRUE,'Social indicators'!B58,0)","v":0}]
["Industrial* :",null,"Points",{"$f":"IF('Social indicators'!D63= TRUE,'Social indicators'!B63,0) + IF('Social indicators'!D64= TRUE,'Social indicators'!B64,0)","v":0}]
[]
["Social support :",null,"Points",{"$f":"OFFSET('Social indicators'!B69,'Social indicators'!D69,0)","v":0}]
["Wishes of local residents or associations to see the landfill removed or reduced."]
["Description of the social support :",null,null,"-"]

{"sheet":"Technical form","index":4,"n_rows":58,"n_cols":5,"rows_kept":58,"cut":false,"hidden":false,"merged":[[43,0,44,2],[18,0,18,3],[22,0,22,3],[30,0,31,2],[21,4,32,8],[33,4,36,8],[37,4,41,8],[42,4,44,8],[15,0,15,2],[19,0,19,2],[7,4,10,8],[11,4,12,8],[13,4,16,8],[17,4,20,8],[45,4,45,8],[46,4,46,8],[47,4,48,8],[49,4,49,8],[56,4,56,8],[57,4,58,8],[50,4,50,8],[51,4,51,8],[52,4,52,8],[53,4,54,8],[55,4,55,8]]}
[]
[]
[null,null,"Tech. form completeness :  ",{"$f":"'Technical indicators'!H1","v":0}]
[]
[]
[null,null,"TECHNICAL SCORE :",{"$f":"((D7-'Technical indicators'!E1)/('Technical indicators'!C1-'Technical indicators'!E1))","v":7.1428571428571425E-2}]
["TECHNICAL ASPECT",null,"TOTAL POINTS",{"$f":"D8+D9+D12+D14+D18+D22+D34+D38+D43+D50+D56","v":0},"User's notes"]
["Landfill status and dates "]
["Main period of landfilling activities * :",null,"Points",{"$f":"OFFSET('Technical indicators'!B15,'Technical indicators'!D15,0)","v":0}]
["Rehabilitation status :",null,"Points",{"$f":"OFFSET('Technical indicators'!B9,'Technical indicators'!D9,0)","v":0}]
[]
["Sampling :",null,"Points",{"$f":"OFFSET('Technical indicators'!B22,'Technical indicators'!D22,0)","v":0}]
[]
["Leachates treatment plant on site :",null,"Points",{"$f":"OFFSET('Technical indicators'!B28,'Technical indicators'!D28,0)","v":0}]
["Description of the leachate treatment plant related to the landfill :"]
[]
[]
["Leachates treatment plant nearby :",null,"Points",{"$f":"OFFSET('Technical indicators'!B35,'Technical indicators'!D35,0)","v":0}]
["Description of the nearest operational treatment plant that could receive leachates from the landfill  :"]
[]
[]
["Biogas aerial collection system :",null,"Points",{"$f":"OFFSET('Technical indicators'!B42,'Technical indicators'!D42,0)","v":0}]
["All information about a gas collection system placed in the landfill, especially if the aerial system can hinder geophysics surveys."]
[]
["Pipes : "]
["Status :"]
["Start date :"]
["End date : "]
["Valorisation :"]
["Description (number of boreholes, trenches, lines of pipes, etc.) :"]
[]
[]
[]
["Landfill Morphology :",null,"Points",{"$f":"OFFSET('Technical indicators'!B47,'Technical indicators'!D47,0)","v":0}]
["Shape of the landfill and its integration in the surrounding area."]
["Surface state* : "]
[]
["Waste height/depth :",null,"Points",{"$f":"OFFSET('Technical indicators'!B65,'Technical indicators'!D65,0)","v":0}]
["Average thickness of the waste deposit [m] :"]
["Maximal height of the waste deposit (above ground level [m]) :",null,null,"-"]
["Maximal depth of the waste deposit (below ground level [m]) :",null,null,"-"]
[]
["Stability of the waste deposit",null,"Points",{"$f":"D46+D47+D48","v":0}]
["This information is related to the probability to encounter any issue related to the stability of the whole waste mass."]
[]
["General slope* : ",null,"Points",{"$f":"OFFSET('Technical indicators'!B73,'Technical indicators'!D73,0)","v":0}]
["Water table : ",null,"Points",{"$f":"OFFSET('Technical indicators'!B79,'Technical indicators'!D79,0)","v":0}]
["Risk of collapse during future excavation works :",null,"Points",{"$f":"OFFSET('Technical indicators'!B86,'Technical indicators'!D86,0)","v":0}]
[]
["Top layer ",null,"Points",{"$f":"D51+D52+D53","v":0}]
["Watertightness layer :",null,"Points",{"$f":"OFFSET('Technical indicators'!B93,'Technical indicators'!D93,0)","v":0}]
["Rainwater drainage :",null,"Points",{"$f":"OFFSET('Technical indicators'!B98,'Technical indicators'!D98,0)","v":0}]
["Gas drainage :",null,"Points",{"$f":"OFFSET('Technical indicators'!B103,'Technical indicators'!D103,0)","v":0}]
["Type of cover* :",null,null,"-"]
[]
["Bottom layer",null,"Points",{"$f":"D57+D58","v":0}]
["Watertightness :",null,"Points",{"$f":"OFFSET('Technical indicators'!B116,'Technical indicators'!D116,0)","v":0}]
["Leachate drainage layer :",null,"Points",{"$f":"OFFSET('Technical indicators'!B121,'Technical indicators'!D121,0)","v":0}]

{"sheet":"Economical form","index":5,"n_rows":116,"n_cols":18,"rows_kept":116,"cut":false,"hidden":false,"merged":[[67,5,67,9],[92,5,92,9],[93,5,93,9],[65,5,66,9],[75,5,76,9],[74,5,74,9],[68,5,68,9],[69,5,69,9],[70,5,71,9],[86,5,86,9],[87,5,87,9],[89,5,90,9],[88,5,88,9],[32,5,33,9],[91,5,91,9],[48,5,48,9],[46,5,47,9],[56,5,57,9],[49,5,49,9],[45,5,45,9],[84,5,84,9],[54,5,54,9],[52,5,52,9],[53,5,53,9],[78,5,78,9],[62,5,62,9],[72,5,73,9],[63,5,63,9],[64,5,64,9],[22,1,22,3],[58,5,59,9],[60,5,60,9],[61,5,61,9],[44,5,44,9],[26,1,26,3],[34,5,36,9],[50,5,50,9],[39,5,39,9],[40,5,40,9],[41,5,41,9],[42,5,43,9],[51,5,51,9],[55,5,55,9],[29,0,29,4],[49,0,49,4],[20,5,21,9],[22,5,23,9],[24,5,25,9],[26,5,27,9],[28,5,29,9],[8,5,8,9],[15,5,16,9],[18,5,19,9],[9,5,9,9],[10,5,10,9],[11,5,11,9],[12,5,12,9],[13,5,13,9],[14,5,14,9],[17,5,17,9],[98,5,99,9],[94,5,94,9],[95,5,95,9],[96,5,97,9],[80,5,80,9],[81,5,81,9],[82,5,82,9],[83,5,83,9],[85,5,85,9],[37,5,38,9],[104,5,105,9],[114,5,114,9],[115,5,115,9],[109,5,109,9],[110,5,110,9],[111,5,111,9],[112,5,112,9],[113,5,113,9],[106,5,108,9],[100,5,100,9],[101,5,101,9],[102,5,102,9],[103,5,103,9],[77,5,77,9],[79,5,79,9]]}
[]
[]
[null,null,null,"Eco. Form completeness :  ",{"$f":"'Economical indicators'!H1","v":0},null,null,null,null,null,null,null,null,null,null,null,"Legend"]
[null,null,null,null,null,null,null,null,null,null,null,null,null,null,null,null,null,"= field to complete"]
[null,null,null,null,null,null,null,null,null,null,null,null,null,null,null,null,"*","= field used in Cedalion DST"]
[null,null,null,null,null,null,null,null,null,null,null,null,null,null,null,null,null,"= desactivated fields"]
[null,null,null,"ECONOMICAL SCORE :",{"$f":"((E8-'Economical indicators'!E1)/('Economical indicators'!C1-'Economical indicators'!E1))","v":0.27748691099476441}]
["ECONOMICAL ASPECT",null,null,"TOTAL POINTS",{"$f":"E9+E18+E45+E49+E75","v":30},"User's notes"]
["POLICY",null,null,"POINTS",{"$f":"E10+E11+E12+E13+E14+E15+E16","v":0}]
["Regional policy encouraging ELFM :",null,null,"Points",{"$f":"OFFSET('Economical indicators'!B4,'Economical indicators'!D4,0)","v":0}]
["Regional incentives encouraging ELFM :",null,null,"Points",{"$f":"OFFSET('Economical indicators'!B9,'Economical indicators'!D9,0)","v":0}]
["Site specific ELFM facilitation procedures :",null,null,"Points",{"$f":"OFFSET('Economical indicators'!B14,'Economical indicators'!D14,0)","v":0}]
["Regional authorisation for in-situ relandfilling :",null,null,"Points",{"$f":"OFFSET('Economical indicators'!B19,'Economical indicators'!D19,0)","v":0}]
["Regional authorisation for relandfilling at another landfill :",null,null,"Points",{"$f":"OFFSET('Economical indicators'!B24,'Economical indicators'!D24,0)","v":0}]
["Ownership :",null,null,"Points",{"$f":"OFFSET('Economical indicators'!B29,'Economical indicators'!D29,0)","v":0}]
["Legal status of the landfill* :",null,null,"Points",{"$f":"OFFSET('Economical indicators'!B34,'Economical indicators'!D34,0)","v":0}]
[]
["LANDFILL CURENT VALUE/COST",null,null,"POINTS",{"$f":"E19+E21+E29+E36+E39","v":10}]
["Fence/site protection :",null,null,"Points",{"$f":"OFFSET('Economical indicators'!B42,'Economical indicators'!D42,0)","v":0}]
[]
["Buried volume [m³] :",null,null,"Points",{"$f":"OFFSET('Economical indicators'!B51,'Economical indicators'!D51,0)*OFFSET('Economical indicators'!B47,'Economical indicators'!D47,0)","v":0}]
[]
["Method used for obtaining the volume : ",null,null,null,"-"]
[]
["Remaining volume before ELFM [m³] :",null,null,null,"-"]
[]
["Method used for obtaining the volume : ",null,null,null,"-"]
[]
["New available volume :",null,null,"Points",{"$f":"OFFSET('Economical indicators'!B63,'Economical indicators'!D63,0)*OFFSET('Economical indicators'!B58,'Economical indicators'!D58,0)","v":0}]
["Estimation of volume available to receive new waste (i.e. ultimate waste from another ELFM project) or materials (i.e. soil for shaping the final landfill after ELFM operations). In some cases, a large volume can be used for other operations as well."]
["New available volume :"]
[]
["Method used for obtaining the data : ",null,null,null,"-"]
[]
["ELFM costs (waste excavation and remediation costs) ",null,null,null,null,"Please indicate in the user's note when the estimation was done [dd/mm/yy]."]
["Estimation of LFM costs [€] : ",1,null,"Points",{"$f":"OFFSET([1]Data!$D$210,'LF description'!D1,0)","v":5}]
[]
["Annual aftercare costs ",null,null,null,null,"Please indicate in the user's note when the estimation was done [dd/mm/yy]."]
["Estimation of annual aftercare costs  [€/year] : ",1,null,"Points",{"$f":"OFFSET([1]Data!$L$210,'LF description'!D1,0)","v":5}]
["Start of aftercare procedure [date : dd-mm-yyyy] :"]
["End of aftercare procedure [date : dd-mm-yyyy] : ",{"$f":"TODAY()+450","v":"2021-08-20"}]
["Remaining aftercare duration [total years] :",{"$f":"IF(B40<TODAY(), DATEDIF(TODAY(),B41,\"Y\"), DATEDIF(B40,B41,\"Y\"))","v":1}]
["Total aftercare costs remaining [€] :",{"$f":"B39*B42","v":1}]
[]
["LAND VALUE",null,null,"POINTS",{"$f":"E46+E47","v":0}]
["Territorial strategy aspects :",null,null,"Points",{"$f":"OFFSET('Economical indicators'!B77,'Economical indicators'!D77,0)","v":0}]
["Land pressure :",null,null,"Points",{"$f":"OFFSET('Economical indicators'!B82,'Economical indicators'!D82,0)","v":0}]
[]
["LANDFILL MINING COSTS",null,null,"POINTS",{"$f":"E51+E59+E68+E73","v":0}]
["Evaluation of the accessibility conditions (for trucks and equipment) to the landfill. Distances are real distances and not as the crow flies."]
["Access for landfill mining operations",null,null,"Points",{"$f":"SUM(E53:E55)","v":0}]
["Paved roads* :",null,null,"Points",{"$f":"OFFSET('Economical indicators'!B90,'Economical indicators'!D90,0)","v":0}]
["Heavy truck access (> 30T)* :",null,null,"Points",{"$f":"OFFSET('Economical indicators'!B95,'Economical indicators'!D95,0)","v":0}]
["Distance to the main road :",null,null,"Points",{"$f":"OFFSET('Economical indicators'!B102,'Economical indicators'!D102,0)","v":0}]
["Distance to the nearest harbour :",null,null,"Points",{"$f":"OFFSET('Economical indicators'!B107,'Economical indicators'!D107,0)","v":0}]
["Distance to the nearest waterways [m]* :",null,null,"Points","-"]
["Distance to the nearest train station [m]* : ",null,null,"Points","-"]
[]
["Facilities for landfill mining operations ",null,null,"Points",{"$f":"SUM(E61:E66)","v":0}]
["Distance to a waste treatment unit or another operational landfill that can receive ultimate waste from an ELFM project."]
["Incineration plant :",null,null,"Points",{"$f":"OFFSET('Economical indicators'!B117,'Economical indicators'!D117,0)","v":0}]
["Cement factories :",null,null,"Points",{"$f":"OFFSET('Economical indicators'!B117,'Economical indicators'!E117,0)","v":0}]
["Waste treatment plant (in general) :",null,null,"Points",{"$f":"OFFSET('Economical indicators'!B117,'Economical indicators'!F117,0)","v":0}]
["Landfill for hazardous waste :",null,null,"Points",{"$f":"OFFSET('Economical indicators'!B117,'Economical indicators'!G117,0)","v":0}]
["Landfill for non hazardous waste :",null,null,"Points",{"$f":"OFFSET('Economical indicators'!B117,'Economical indicators'!H117,0)","v":0}]
["Mechanical biological treatment plant :",null,null,"Points",{"$f":"OFFSET('Economical indicators'!B117,'Economical indicators'!I117,0)","v":0}]
[]
["Leachates ",null,null,"Points",{"$f":"MAX(E69,E70)+E71","v":0}]
["Leachates treatment plant on site :",null,null,"Points",{"$f":"OFFSET('Economical indicators'!B126,'Technical indicators'!D28,0)","v":0}]
["Leachates treatment plant nearby :",null,null,"Points",{"$f":"OFFSET('Economical indicators'!B133,'Technical indicators'!D35,0)","v":0}]
["Landfill producing leachates :",null,null,"Points",{"$f":"OFFSET('Economical indicators'!B210, 'Environmental indicators'!$D$84,0)","v":0}]
[]
["Fragmentation :",null,null,"Points",{"$f":"OFFSET('Economical indicators'!B140,'Economical indicators'!D140,0)","v":0}]
[]
["WASTE ",null,null,"POINTS",{"$f":"E76+E78+E92+E99+E101+E107+E110","v":20}]
["Main waste type :",null,null,"Points",{"$f":"OFFSET('Economical indicators'!B145,'Economical indicators'!D145,0)","v":0}]
[]
["Specific waste stream ","%","Data quality","Points",{"$f":"SUM(E79:E88)","v":0}]
["Dredging sludge* :",{"$f":"'Waste description'!$B$63","v":0},null,"Points",{"$f":"OFFSET('Economical indicators'!$B$156,'Economical indicators'!E162,0)*'Economical indicators'!B162*'Economical indicators'!D162","v":0}]
["Construction waste*:",{"$f":"'Waste description'!$B$64","v":0},null,"Points",{"$f":"OFFSET('Economical indicators'!$B$156,'Economical indicators'!E163,0)*'Economical indicators'!B163*'Economical indicators'!D163","v":0}]
["Water purification sludge* :",{"$f":"'Waste description'!$B$65","v":0},null,"Points",{"$f":"OFFSET('Economical indicators'!$B$156,'Economical indicators'!E164,0)*'Economical indicators'!B164*'Economical indicators'!D164","v":0}]
["Gypsum :",{"$f":"'Waste description'!$B$66","v":0},null,"Points",{"$f":"OFFSET('Economical indicators'!$B$156,'Economical indicators'!E165,0)*'Economical indicators'!B165*'Economical indicators'!D165","v":0}]
["Fly ash* :",{"$f":"'Waste description'!$B$67","v":0},null,"Points",{"$f":"OFFSET('Economical indicators'!$B$156,'Economical indicators'!E166,0)*'Economical indicators'!B166*'Economical indicators'!D166","v":0}]
["Asbestos* :",{"$f":"'Waste description'!$B$68","v":0},null,"Points",{"$f":"OFFSET('Economical indicators'!$B$156,'Economical indicators'!E167,0)*'Economical indicators'!B167*'Economical indicators'!D167","v":0}]
["Slags* :",{"$f":"'Waste description'!$B$69","v":0},null,"Points",{"$f":"OFFSET('Economical indicators'!$B$156,'Economical indicators'!E168,0)*'Economical indicators'!B168*'Economical indicators'!D168","v":0}]
["Mining waste* :",{"$f":"'Waste description'!$B$70","v":0},null,"Points",{"$f":"OFFSET('Economical indicators'!$B$156,'Economical indicators'!E169,0)*'Economical indicators'!B169*'Economical indicators'!D169","v":0}]
["Lime* :",{"$f":"'Waste description'!$B$71","v":0},null,"Points",{"$f":"OFFSET('Economical indicators'!$B$156,'Economical indicators'!E170,0)*'Economical indicators'!B170*'Economical indicators'!D170","v":0}]
["Contaminated soil :",{"$f":"'Waste description'!$B$72","v":0},null,"Points",{"$f":"OFFSET('Economical indicators'!$B$156,'Economical indicators'!E171,0)*'Economical indicators'!B171*'Economical indicators'!D171","v":0}]
[{"$f":"'Waste description'!$A$73","v":"Other : …"},{"$f":"'Waste description'!$B$73","v":0},null,"Points","-"]
["Total",{"$f":"SUM(B79:B88)/100","v":0}]
[]
["Hazardous waste",null,null,"Points",{"$f":"E93+E94+E95+E96","v":0}]
["Radioactive waste* :",null,null,"Points",{"$f":"OFFSET('Economical indicators'!B175,'Economical indicators'!D175,0)","v":0}]
["Hazardous hospital waste* :",null,null,"Points",{"$f":"OFFSET('Economical indicators'!B182,'Economical indicators'!D182,0)","v":0}]
["Hazardous military waste*:",null,null,"Points",{"$f":"OFFSET('Economical indicators'!B189,'Economical indicators'!D189,0)","v":0}]
["Asbestos* :",null,null,"Points",{"$f":"OFFSET('Economical indicators'!B196,'Economical indicators'!D196,0)","v":0}]
["Other hazardous waste :",null,null,"Points","-"]
[]
["Main physical state :",null,null,"Points",{"$f":"OFFSET('Economical indicators'!B203,'Economical indicators'!D203,0)","v":0}]
[]
[{"$f":"'Economical indicators'!A215","v":"Daily cover"},null,null,"Points",{"$f":"E102*(E103+E104)","v":0}]
["Use of daily cover :",null,null,"Factor",{"$f":"OFFSET('Economical indicators'!B217,'Economical indicators'!D217,0)","v":0}]
["Cover Type :",null,null,"Points",{"$f":"OFFSET('Economical indicators'!B222,'Economical indicators'!D222,0)","v":0}]
["% of the waste volume occupied by the cover : ",null,null,"Points",{"$f":"OFFSET('Economical indicators'!B228,'Economical indicators'!D228,0)","v":0}]
["Origin of cover product : ",null,null,"Points","-"]
[]
["Waste composition (from table)",null,null,"Points",{"$f":"OFFSET([1]Data!$S$210,'LF description'!D1,0)","v":20}]
[null,{"$f":"'Waste description'!F9","v":1}]
[]
["Waste homogeneity (for each layer)","Homogeneity","Volume of the layer/landfill volume [%]","Points",{"$f":"SUM(E111:E115)","v":0}]
["Layer 1",null,{"$f":"'Waste description'!D92","v":0},"Points",{"$f":"IF('Economical indicators'!D236 = TRUE, OFFSET('Economical indicators'!B235,'Economical indicators'!D235,0), 0)*C111","v":0}]
["Layer 2",null,{"$f":"'Waste description'!D93","v":0},"Points",{"$f":"IF('Economical indicators'!E236 = TRUE, OFFSET('Economical indicators'!B235,'Economical indicators'!E235,0), 0)*C112","v":0}]
["Layer 3",null,{"$f":"'Waste description'!D94","v":0},"Points",{"$f":"IF('Economical indicators'!F236 = TRUE, OFFSET('Economical indicators'!B235,'Economical indicators'!F235,0),0)*C113","v":0}]
["Layer 4",null,{"$f":"'Waste description'!D95","v":0},"Points",{"$f":"IF('Economical indicators'!G236 = TRUE, OFFSET('Economical indicators'!B235,'Economical indicators'!G235,0),0)*C114","v":0}]
["Layer 5",null,{"$f":"'Waste description'!D96","v":0},"Points",{"$f":"IF('Economical indicators'!H236 = TRUE, OFFSET('Economical indicators'!B235,'Economical indicators'!H235,0), 0 )*C115","v":0}]
[null,"Total",{"$f":"SUM('Economical indicators'!D238:H238)","v":0}]

{"sheet":"Additional Information","index":6,"n_rows":95,"n_cols":7,"rows_kept":95,"cut":false,"hidden":false,"merged":[[94,1,94,4],[95,1,95,4],[100,1,100,4],[96,1,96,4],[97,1,97,4],[98,1,98,4],[99,1,99,4],[38,0,38,4],[30,1,32,3],[34,1,34,3],[36,1,36,3],[5,0,5,4],[14,0,14,4],[7,5,9,6],[10,5,11,6],[12,5,13,6],[6,5,6,6],[16,5,17,6],[15,5,15,6],[14,5,14,6],[26,5,26,6],[27,5,27,6],[28,5,28,6],[29,5,29,6],[30,5,33,6],[18,5,19,6],[20,5,21,6],[22,5,22,6],[23,5,23,6],[24,5,25,6],[42,5,42,6],[43,5,43,6],[44,5,44,6],[39,5,39,6],[34,5,35,6],[36,5,37,6],[38,5,38,6],[45,5,45,6],[46,5,46,6],[47,5,47,6],[50,5,50,6],[51,5,51,6],[52,5,52,6],[53,5,53,6],[54,5,54,6],[55,5,55,6],[78,5,78,6],[70,5,70,6],[71,5,73,6],[74,5,76,6],[64,5,65,6],[66,5,67,6],[68,5,68,6],[69,5,69,6],[62,5,63,6],[57,5,58,6],[59,5,61,6],[98,5,98,6],[99,5,99,6],[100,5,100,6],[79,5,79,6],[80,5,80,6],[81,5,81,6],[82,5,82,6],[87,5,87,6],[88,5,88,6],[89,5,89,6],[90,5,90,6],[91,5,91,6],[95,5,95,6],[96,5,96,6],[97,5,97,6]]}
[null,null,null,null,null,"Legend"]
[null,null,null,null,null,null,"= Field to complete"]
[]
[null,"Additional information"]
[]
["GENERIC INFORMATION",null,null,null,null,"User's notes"]
[]
["ELIF datasheet responsible "]
["Name: ",null,"Function :"]
[]
["Creation date [dd-mm-yyyy] :"]
[]
["Date of updating [dd-mm-yyyy] :"]
[]
["REGULATORY INFORMATION"]
[]
["Regional policy encouraging ELFM:"]
[]
["Regional incentives encouraging ELFM:"]
[]
["Dates of landfill ban:"]
["Name of the stream (metals, organics, hazardous waste, EOL vehicles…)","Regional code of the restricted stream (when it exists)","Date of applicability of the restriction","Type of restriction:"]
[]
[]
[]
[]
["Site specific ELFM facilitation procedures"]
["Reference :"]
["Signature date :"]
["Expiration date : "]
["Summary :"]
[]
[]
[]
["Regional authorisation for in-situ relandfilling:"]
[]
["Regional authorisation for relandfilling at another landfill :"]
[]
["Landfill ID card"]
[]
["Permits"]
["Reference","Date of autorisation","Expiration date","Nature of permit","Permit Holder"]
[]
[]
[]
[]
[]
[]
[]
["Landfill operator(s)"]
[null,"Name","Start date","End date"]
["Operator 1 :"]
["Operator 2 :"]
["Operator 3 :"]
["Operator 4 :"]
["Operator 5 :"]
[]
["Landfill type (EU Directive) :"]
[]
["Landfill status and dates"]
["Usage status :"]
[]
["Landfill operation :"]
["Start date :",null,"End date :"]
["Rehabilitation"]
["Start date :",null,"End date :"]
["Aftercare period"]
["Start date :",null,"End date :"]
[]
["Landfill monitoring"]
["Monitored  :"]
["Company in charge of the monitoring : "]
["Start date :",null,"End date :"]
[]
["Warranties given "]
["Cost (€ excluding taxes, VAT, etc.) : "]
[]
["Studies "]
["Reference","Title","Date","Main author(s)","Confidentiality"]
[]
[]
[]
[]
[]
[]
["Sampling"]
["Reference","Date","Responsible","Sampling method","Analysis"]
[]
[]
[]
[]
[]
[]
["Historical Information"]
["Date","Historical activities/Description/Historical data"]

{"sheet":"RDM","index":7,"n_rows":10,"n_cols":20,"rows_kept":10,"cut":false,"hidden":false,"merged":[]}
[null,null,null,null,null,null,null,null,null,null,"Legend"]
[null,null,null,null,null,null,null,null,null,null,null,"= Field to complete"]
[null,null,null,null,null,null,"Resource Distribution Model"]
[]
["Waste","Spatial extension ","Depth [m]","Thickness [m]","Volume [m³]","Density [T/m³]","Tonnes buried [T]","Physical State","Homogeneity (macro)","Homogeneity (micro)","Fines [%]","Main type","Gas content [%]","Water content [%]","T° [°C]","Water table","Begin of the landfilling","End of the landfilling","Composition","Recyclability potential"]
["Zone 1"]
["Zone 2"]
["Zone 3"]
["Zone 4"]
["Zone 5"]

{"sheet":"Results","index":8,"n_rows":8,"n_cols":13,"rows_kept":8,"cut":false,"hidden":true,"merged":[]}
[]
[]
[]
[null,null,null,"Landfill name : ",{"$f":"'LF description'!B8","v":"LF1 Name"}]
[]
["Score",null,null,null,null,null,null,"Completeness"]
[null,"Environmental score","Social score","Technical score","Economical score","Moyenne",null,null,"Environmental form","Social form","Technical form","Economical form","Total completion"]
[{"$f":"'LF description'!A6","v":"LANDFILL 1"},{"$f":"'Environmental form'!D6","v":4.7619047619047616E-2},{"$f":"'Social form'!D7","v":0.12},{"$f":"'Technical form'!D6","v":7.1428571428571425E-2},{"$f":"'Economical form'!E7","v":0.27748691099476441},{"$f":"AVERAGE(B8:E8)","v":0.12913363251059587},null,{"$f":"'LF description'!A6","v":"LANDFILL 1"},{"$f":"'Environmental form'!D3","v":0},{"$f":"'Social form'!D3","v":0},{"$f":"'Technical form'!D3","v":0},{"$f":"'Economical form'!E3","v":0},{"$f":"AVERAGE(I8:L8)","v":0}]

{"sheet":"Comment Report","index":9,"n_rows":0,"n_cols":0,"rows_kept":0,"cut":false,"hidden":false,"merged":[]}

{"sheet":"Waste description parameters","index":10,"n_rows":4,"n_cols":3,"rows_kept":4,"cut":false,"hidden":true,"merged":[]}
[]
["Wast description",null,2]
["Simplified waste description"]
["Detailed waste description"]

{"sheet":"Results by category","index":11,"n_rows":16,"n_cols":9,"rows_kept":16,"cut":false,"hidden":true,"merged":[]}
[]
["ENVIRONMENTAL ASPECT"]
["General Risk Evaluation","Spécific Environmental Issue","Surface Water","Geological context","Groundwater vulnerability","Emission to air","Biodiversity"]
[{"$f":"'Environmental form'!$D$9","v":0},{"$f":"'Environmental form'!$D$22","v":0},{"$f":"'Environmental form'!$D$26","v":0},{"$f":"'Environmental form'!$D$31","v":0},{"$f":"'Environmental form'!$D$34","v":0},{"$f":"'Environmental form'!$D$42","v":0},{"$f":"'Environmental form'!$D$44","v":0}]
[]
["SOCIAL ASPECT"]
["General risk Evaluation","Current use ","Territorial strategy aspects:","Occupation","Social support"]
[{"$f":"'Social form'!$D$10","v":0},{"$f":"'Social form'!$D$17","v":0},{"$f":"'Social form'!$D$22","v":0},{"$f":"'Social form'!$D$24","v":0},{"$f":"'Social form'!$D$34","v":0}]
[]
["TECHNICAL ASPECT"]
["Landfill status and dates","Sampling","Leachates treatment","Biogas aerial collection system","Landfill Morphology","Waste heights/depth:","Stability of the waste mass","Top layer","Bottom layer"]
[{"$f":"'Technical form'!$D$8","v":0},{"$f":"'Technical form'!$D$12","v":0},{"$f":"'Technical form'!$D$14+'Technical form'!$D$18","v":0},{"$f":"'Technical form'!$D$22","v":0},{"$f":"'Technical form'!$D$34","v":0},{"$f":"'Technical form'!$D$38","v":0},{"$f":"'Technical form'!$D$43","v":0},{"$f":"'Technical form'!$D$50","v":0},{"$f":"'Technical form'!$D$56","v":0}]
[]
["ECONOMICAL ASPECT"]
[{"$f":"'Economical form'!A9","v":"POLICY"},{"$f":"'Economical form'!A18","v":"LANDFILL CURENT VALUE/COST"},{"$f":"'Economical form'!A45","v":"LAND VALUE"},{"$f":"'Economical form'!A49","v":"LANDFILL MINING COSTS"},{"$f":"'Economical form'!A75","v":"WASTE "}]
[{"$f":"'Economical form'!E9","v":0},{"$f":"'Economical form'!E18","v":10},{"$f":"'Economical form'!E45","v":0},{"$f":"'Economical form'!E49","v":0},{"$f":"'Economical form'!E75","v":20}]

{"sheet":"Environmental indicators","index":12,"n_rows":93,"n_cols":12,"rows_kept":93,"cut":false,"hidden":true,"merged":[]}
["ENVIRONMENTAL INDICATORS","Max",{"$f":"'[2]Environmental indicators'!$C$1","v":40},"Min",{"$f":"'[2]Environmental indicators'!$E$1","v":-2},null,"Completeness rate",{"$f":"SUM(G3:G107)","v":0}]
[null,"Points",null,"Résultat formulaire",null,"Completeness Value","Completeness"]
["General Risk Evaluation",null,null,null,null,{"$f":"'[2]Environmental indicators'!G4","v":0.3},{"$f":"IF(COUNTA(D4:D10)=0,\"\",F3)","v":""}]
[{"$f":"'[2]Environmental indicators'!A5","v":"Flood"},2,null,null,null,null,null,null,null,null,null,true]
[{"$f":"'[2]Environmental indicators'!A6","v":"Fire"},{"$f":"'[2]Environmental indicators'!$B$6","v":1},null,null,null,null,null,null,null,null,null,false]
[{"$f":"'[2]Environmental indicators'!A7","v":"Risk of landfill’s collapse"},{"$f":"'[2]Environmental indicators'!B7","v":2},null,null,null,null,null,null,null,null,null,true]
[{"$f":"'[2]Environmental indicators'!A8","v":"Person accident"},{"$f":"'[2]Environmental indicators'!B8","v":1}]
[{"$f":"'[2]Environmental indicators'!A9","v":"Direct exposition to waste, (bio)gas and/or leachate"},{"$f":"'[2]Environmental indicators'!B9","v":0},{"$f":"'[2]Environmental indicators'!C9","v":"cf Social indicators"}]
[{"$f":"'[2]Environmental indicators'!A10","v":"Other"},{"$f":"'[2]Environmental indicators'!B10","v":1}]
[{"$f":"'[2]Environmental indicators'!A11","v":"Unknown"},{"$f":"'[2]Environmental indicators'!B11","v":1}]
[]
[{"$f":"'[2]Environmental indicators'!A13","v":"Specific Environmental Issue :"}]
[null,null,{"$f":"'[2]Environmental indicators'!C13","v":"Impact of the LFM project"},null,null,{"$f":"'[2]Environmental indicators'!G13","v":0.1},{"$f":"IF(D13<>\"\", F13,\"\")","v":""}]
[{"$f":"'[2]Environmental indicators'!A14","v":"Yes (positive)"},{"$f":"'[2]Environmental indicators'!B14","v":2}]
[{"$f":"'[2]Environmental indicators'!A15","v":"Yes (negative)"},{"$f":"'[2]Environmental indicators'!B15","v":-2}]
[{"$f":"'[2]Environmental indicators'!A16","v":"No"},{"$f":"'[2]Environmental indicators'!B16","v":0}]
[]
[{"$f":"'[2]Environmental indicators'!A18","v":"Surface Water :"}]
[null,null,null,null,null,{"$f":"'[2]Environmental indicators'!G18","v":0.05},{"$f":"IF(AND(D19<>\"\",D19<>7), F19,\"\")","v":""}]
[{"$f":"'[2]Environmental indicators'!A19","v":"Contaminated (estimated)"},{"$f":"'[2]Environmental indicators'!B19","v":1}]
[{"$f":"'[2]Environmental indicators'!A20","v":"Contaminated (measured)"},{"$f":"'[2]Environmental indicators'!B20","v":2}]
[{"$f":"'[2]Environmental indicators'!A21","v":"High risk of contamination"},{"$f":"'[2]Environmental indicators'!B21","v":2}]
[{"$f":"'[2]Environmental indicators'!A22","v":"Medium risk of contamination"},{"$f":"'[2]Environmental indicators'!B22","v":1}]
[{"$f":"'[2]Environmental indicators'!A23","v":"Low risk of contamination"},{"$f":"'[2]Environmental indicators'!B23","v":0}]
[{"$f":"'[2]Environmental indicators'!A24","v":"No risk of contamination"},{"$f":"'[2]Environmental indicators'!B24","v":0}]
[{"$f":"'[2]Environmental indicators'!A25","v":"Unknown"},{"$f":"'[2]Environmental indicators'!B25","v":1}]
[]
[{"$f":"'[2]Environmental indicators'!A27","v":"Geological context :"}]
[null,null,null,null,null,{"$f":"'[2]Environmental indicators'!G27","v":0.05},{"$f":"IF(D29<>\"\", F29,\"\")","v":""}]
[{"$f":"'[2]Environmental indicators'!A28","v":"Highly permeable soil/rocks"},{"$f":"'[2]Environmental indicators'!B28","v":2}]
[{"$f":"'[2]Environmental indicators'!A29","v":"Medium"},{"$f":"'[2]Environmental indicators'!B29","v":1}]
[{"$f":"'[2]Environmental indicators'!A30","v":"Low"},{"$f":"'[2]Environmental indicators'!B30","v":0}]
[]
[{"$f":"'[2]Environmental indicators'!A32","v":"Groundwater vulnerability"}]
[{"$f":"'[2]Environmental indicators'!A33","v":"Groundwater type (factor) :"}]
[null,null,null,null,null,{"$f":"'[2]Environmental indicators'!G33","v":2.5000000000000001E-2},{"$f":"IF(D36<>\"\", F36,\"\")","v":""}]
[{"$f":"'[2]Environmental indicators'!A34","v":"Exploited"},{"$f":"'[2]Environmental indicators'!B34","v":2}]
[{"$f":"'[2]Environmental indicators'!A35","v":"Not exploited"},{"$f":"'[2]Environmental indicators'!B35","v":1}]
[{"$f":"'[2]Environmental indicators'!A36","v":"Groundwater contamination :"}]
[null,null,null,null,null,{"$f":"'[2]Environmental indicators'!G36","v":7.4999999999999997E-2},{"$f":"IF(AND(D40<>\"\",D40<>7), F40,\"\")","v":""}]
[{"$f":"'[2]Environmental indicators'!A37","v":"Contaminated groundwater (estimated)"},{"$f":"'[2]Environmental indicators'!B37","v":1}]
[{"$f":"'[2]Environmental indicators'!A38","v":"Contaminated groundwater (measured)"},{"$f":"'[2]Environmental indicators'!B38","v":2}]
[{"$f":"'[2]Environmental indicators'!A39","v":"High risk of contamination"},{"$f":"'[2]Environmental indicators'!B39","v":3}]
[{"$f":"'[2]Environmental indicators'!A40","v":"Medium risk of contamination"},{"$f":"'[2]Environmental indicators'!B40","v":2}]
[{"$f":"'[2]Environmental indicators'!A41","v":"Low risk of contamination"},{"$f":"'[2]Environmental indicators'!B41","v":1}]
[{"$f":"'[2]Environmental indicators'!A42","v":"No risk of contamination"},{"$f":"'[2]Environmental indicators'!B42","v":0}]
[{"$f":"'[2]Environmental indicators'!A43","v":"Unknown"},{"$f":"'[2]Environmental indicators'!B43","v":0}]
[{"$f":"'[2]Environmental indicators'!A44","v":"Landfill include in a catchment protection zone"}]
[null,null,null,null,null,{"$f":"'[2]Environmental indicators'!G44","v":0.125},{"$f":"IF(D49<>\"\", F49,\"\")","v":""}]
[{"$f":"'[2]Environmental indicators'!A45","v":"Yes (close protection zone)"},{"$f":"'[2]Environmental indicators'!B45","v":5}]
[{"$f":"'[2]Environmental indicators'!A46","v":"Yes (extended protection zone)"},{"$f":"'[2]Environmental indicators'!B46","v":3}]
[{"$f":"'[2]Environmental indicators'!A47","v":"No "},{"$f":"'[2]Environmental indicators'!B47","v":0}]
[]
[{"$f":"'[2]Environmental indicators'!A49","v":"Air emission (biogas, industrial gas, dust…) :"}]
[null,null,null,null,null,{"$f":"'[2]Environmental indicators'!G49","v":0.05},{"$f":"IF(AND(D55<>\"\",D55<>3), F55,\"\")","v":""}]
[{"$f":"'[2]Environmental indicators'!A50","v":"Yes"},{"$f":"'[2]Environmental indicators'!B50","v":2}]
[{"$f":"'[2]Environmental indicators'!A51","v":"No"},{"$f":"'[2]Environmental indicators'!B51","v":0}]
[{"$f":"'[2]Environmental indicators'!A52","v":"Unknown"},{"$f":"'[2]Environmental indicators'!B52","v":1}]
[]
[{"$f":"'[2]Environmental indicators'!A54","v":"Biodiversity"}]
[{"$f":"'[2]Environmental indicators'!A55","v":"On site :"}]
[null,null,null,null,null,{"$f":"'[2]Environmental indicators'!G55","v":0.1},{"$f":"IF(D62<>\"\", F62,\"\")","v":""}]
[{"$f":"'[2]Environmental indicators'!A56","v":"Yes"},{"$f":"'[2]Environmental indicators'!B56","v":0}]
[{"$f":"'[2]Environmental indicators'!A57","v":"No"},{"$f":"'[2]Environmental indicators'!B57","v":4}]
[{"$f":"'[2]Environmental indicators'!A58","v":"Site in Natura 2000 zone :"}]
[null,null,null,null,null,{"$f":"'[2]Environmental indicators'!G58","v":0.05},{"$f":"IF(D66<>\"\", F66,\"\")","v":""}]
[{"$f":"'[2]Environmental indicators'!A59","v":"Yes"},{"$f":"'[2]Environmental indicators'!B59","v":0}]
[{"$f":"'[2]Environmental indicators'!A60","v":"No"},{"$f":"'[2]Environmental indicators'!B60","v":2}]
[]
[{"$f":"'[2]Environmental indicators'!A62","v":"Erosion"}]
[null,null,null,null,null,{"$f":"'[2]Environmental indicators'!G62","v":0.05},{"$f":"IF(D71<>\"\", F71,\"\")","v":""}]
[{"$f":"'[2]Environmental indicators'!A63","v":"None"},{"$f":"'[2]Environmental indicators'!B63","v":0}]
[{"$f":"'[2]Environmental indicators'!A64","v":"Weak"},{"$f":"'[2]Environmental indicators'!B64","v":0}]
[{"$f":"'[2]Environmental indicators'!A65","v":"Severe"},{"$f":"'[2]Environmental indicators'!B65","v":2}]
[{"$f":"'[2]Environmental indicators'!A66","v":"Potential"},{"$f":"'[2]Environmental indicators'!B66","v":0}]
[]
[{"$f":"'[2]Environmental indicators'!A68","v":"Flooding risk"}]
[null,null,null,null,null,{"$f":"'[2]Environmental indicators'!G68","v":0},""]
[{"$f":"'[2]Environmental indicators'!A69","v":"Low"},{"$f":"'[2]Environmental indicators'!B69","v":1}]
[{"$f":"'[2]Environmental indicators'!A70","v":"Medium"},{"$f":"'[2]Environmental indicators'!B70","v":2}]
[{"$f":"'[2]Environmental indicators'!A71","v":"High"},{"$f":"'[2]Environmental indicators'!B71","v":3}]
[]
[{"$f":"'[2]Environmental indicators'!A73","v":"Landfill producing leachates :"}]
[null,null,null,null,null,{"$f":"'[2]Environmental indicators'!G73","v":2.5000000000000001E-2},{"$f":"IF(AND(D84<>\"\",D84<>3), F84,\"\")","v":""}]
[{"$f":"'[2]Environmental indicators'!A74","v":"Yes"},{"$f":"'[2]Environmental indicators'!B74","v":1}]
[{"$f":"'[2]Environmental indicators'!A75","v":"No"},{"$f":"'[2]Environmental indicators'!B75","v":0}]
[{"$f":"'[2]Environmental indicators'!A76","v":"Unknown"},{"$f":"'[2]Environmental indicators'!B76","v":0}]
[]
[{"$f":"'[2]Environmental indicators'!A78","v":"Contamination of the soil surrounding the landfill"}]
[null,null,null,null,null,{"$f":"'[2]Environmental indicators'!G79","v":0},{"$f":"IF(AND(D90<>\"\",D90<>3), F90,\"\")","v":""}]
[{"$f":"'[2]Environmental indicators'!A79","v":"Yes"},1]
[{"$f":"'[2]Environmental indicators'!A80","v":"No"},{"$f":"'[2]Environmental indicators'!B81","v":0}]
[{"$f":"'[2]Environmental indicators'!A81","v":"Unknown"},{"$f":"'[2]Environmental indicators'!B81","v":0}]

{"sheet":"Social indicators","index":13,"n_rows":81,"n_cols":8,"rows_kept":81,"cut":false,"hidden":true,"merged":[]}
["SOCIAL INDICATORS","Max",{"$f":"'[2]Social indicators'!$C$1","v":22},"Min",{"$f":"'[2]Social indicators'!$E$1","v":-3},null,"Completeness rate",{"$f":"SUM(G3:G81)","v":0}]
[null,"Points",null,"Résultat formulaire",{"$f":"'[2]Social indicators'!$D$3","v":"Severe risk for human health caused by the landfill"},"Completeness Value","Completeness"]
["General risk Evaluation",null,null,null,null,{"$f":"'[2]Social indicators'!H3","v":0.23076923076923078},{"$f":"IF('Environmental indicators'!D8<>\"\", F3,\"\")","v":""}]
[{"$f":"'[2]Social indicators'!A4","v":"Severe risk for human health"},{"$f":"'[2]Social indicators'!B4","v":6}]
[]
[{"$f":"'[2]Social indicators'!A6","v":"Current use :"}]
[null,null,null,null,{"$f":"'[2]Social indicators'!$D$6","v":"Current use of the site of the landfill, regardless its official use."},{"$f":"'[2]Social indicators'!H6","v":0.23076923076923078},{"$f":"IF(D7<>\"\", F7,\"\")","v":""}]
[{"$f":"'[2]Social indicators'!A7","v":"Residential use"},{"$f":"'[2]Social indicators'!B7","v":-4}]
[{"$f":"'[2]Social indicators'!A8","v":"Commercial use"},{"$f":"'[2]Social indicators'!B8","v":-4}]
[{"$f":"'[2]Social indicators'!A9","v":"Recreational use"},{"$f":"'[2]Social indicators'!B9","v":-2}]
[{"$f":"'[2]Social indicators'!A10","v":"Natural reforestation with added value"},{"$f":"'[2]Social indicators'!B10","v":1}]
[{"$f":"'[2]Social indicators'!A11","v":"Natural reforestation without added value"},{"$f":"'[2]Social indicators'!B11","v":0}]
[{"$f":"'[2]Social indicators'!A12","v":"Cultivation (crop, biomass)"},{"$f":"'[2]Social indicators'!B12","v":2}]
[{"$f":"'[2]Social indicators'!A13","v":"Use for renewable energies"},{"$f":"'[2]Social indicators'!B13","v":-1}]
[{"$f":"'[2]Social indicators'!A14","v":"LF in operation/zone included in LF in operation"},{"$f":"'[2]Social indicators'!B14","v":1}]
[{"$f":"'[2]Social indicators'!A15","v":"Others"},{"$f":"'[2]Social indicators'!B15","v":0}]
[]
[{"$f":"'[2]Social indicators'!A17","v":"Territorial strategy aspects:"}]
[null,null,null,null,null,{"$f":"'[2]Social indicators'!H17","v":0.23076923076923078},{"$f":"IF(AND(D19<>\"\",D19<>3), F19,\"\")","v":""}]
[{"$f":"'[2]Social indicators'!A18","v":"Existence of a redevelopment project nearby"},{"$f":"'[2]Social indicators'!B18","v":6}]
[{"$f":"'[2]Social indicators'!A19","v":"No project"},{"$f":"'[2]Social indicators'!B19","v":0}]
[{"$f":"'[2]Social indicators'!A20","v":"Unknown"},{"$f":"'[2]Social indicators'!B20","v":0}]
[]
[{"$f":"'[2]Social indicators'!A22","v":"Surroundings"},null,null,null,null,null,{"$f":"IF(D24<>\"\", F24,\"\")","v":""}]
[{"$f":"'[2]Social indicators'!A23","v":"Natural :"},null,null,null,{"$f":"'[2]Social indicators'!$D$22","v":"Main land use of land within a radius of 500 m around the boundaries of the landfill."},{"$f":"'[2]Social indicators'!H22","v":7.6923076923076927E-2},{"$f":"IF(COUNTA(D25:D65)<>0, F25,\"\")","v":""}]
[]
[{"$f":"'[2]Social indicators'!A24","v":"Present"},{"$f":"'[2]Social indicators'!B24","v":0}]
[{"$f":"'[2]Social indicators'!A25","v":"Potential"},{"$f":"'[2]Social indicators'!B25","v":0}]
[{"$f":"'[2]Social indicators'!A26","v":"None"},{"$f":"'[2]Social indicators'!B26","v":0}]
[]
[{"$f":"'[2]Social indicators'!A27","v":"Agricultural :"}]
[]
[{"$f":"'[2]Social indicators'!A28","v":"Present"},{"$f":"'[2]Social indicators'!B28","v":0}]
[{"$f":"'[2]Social indicators'!A29","v":"Potential"},{"$f":"'[2]Social indicators'!B29","v":0}]
[{"$f":"'[2]Social indicators'!A30","v":"None"},{"$f":"'[2]Social indicators'!B30","v":0}]
[]
[{"$f":"'[2]Social indicators'!A31","v":"Forest :"}]
[]
[{"$f":"'[2]Social indicators'!A32","v":"Present"},{"$f":"'[2]Social indicators'!B32","v":0}]
[{"$f":"'[2]Social indicators'!A33","v":"Potential"},{"$f":"'[2]Social indicators'!B33","v":0}]
[{"$f":"'[2]Social indicators'!A34","v":"None"},{"$f":"'[2]Social indicators'!B34","v":0}]
[]
[{"$f":"'[2]Social indicators'!A35","v":"Residential :"}]
[]
[{"$f":"'[2]Social indicators'!A36","v":"Present"},{"$f":"'[2]Social indicators'!B36","v":2}]
[{"$f":"'[2]Social indicators'!A37","v":"Potential"},{"$f":"'[2]Social indicators'!B37","v":1}]
[{"$f":"'[2]Social indicators'!A38","v":"None"},{"$f":"'[2]Social indicators'!B38","v":0}]
[]
[{"$f":"'[2]Social indicators'!A39","v":"Recreational/touristic :"}]
[]
[{"$f":"'[2]Social indicators'!A40","v":"Present"},{"$f":"'[2]Social indicators'!B40","v":0}]
[{"$f":"'[2]Social indicators'!A41","v":"Potential"},{"$f":"'[2]Social indicators'!B41","v":0}]
[{"$f":"'[2]Social indicators'!A42","v":"None"},{"$f":"'[2]Social indicators'!B42","v":0}]
[]
[{"$f":"'[2]Social indicators'!A43","v":"Economical/services :"}]
[]
[{"$f":"'[2]Social indicators'!A44","v":"Present"},{"$f":"'[2]Social indicators'!B44","v":2}]
[{"$f":"'[2]Social indicators'!A45","v":"Potential"},{"$f":"'[2]Social indicators'!B45","v":1}]
[{"$f":"'[2]Social indicators'!A46","v":"None"},{"$f":"'[2]Social indicators'!B46","v":0}]
[]
[{"$f":"'[2]Social indicators'!A47","v":"Industrial :"}]
[]
[{"$f":"'[2]Social indicators'!A48","v":"Present"},{"$f":"'[2]Social indicators'!B48","v":2}]
[{"$f":"'[2]Social indicators'!A49","v":"Potential"},{"$f":"'[2]Social indicators'!B49","v":1}]
[{"$f":"'[2]Social indicators'!A50","v":"None"},{"$f":"'[2]Social indicators'!B50","v":0}]
[]
[]
[{"$f":"'[2]Social indicators'!A52","v":"Social support :"}]
[null,null,null,null,{"$f":"'[2]Social indicators'!$D$52","v":"Wishes of local residents or associations to see the landfill removed or reduced"},{"$f":"'[2]Social indicators'!H52","v":0.15384615384615385},{"$f":"IF(AND(D69<>\"\",D69<>3), F69,\"\")","v":""}]
[{"$f":"'[2]Social indicators'!A53","v":"Yes"},{"$f":"'[2]Social indicators'!B53","v":4}]
[{"$f":"'[2]Social indicators'!A54","v":"No"},{"$f":"'[2]Social indicators'!B54","v":0}]
[{"$f":"'[2]Social indicators'!A55","v":"Unknown"},{"$f":"'[2]Social indicators'!B55","v":0}]
[]
[{"$f":"'[2]Social indicators'!$A57","v":"Olfactory pollution"},null,null,null,null,null,{"$f":"IF(D74<>\"\", F74,\"\")","v":""}]
[null,null,null,null,null,{"$f":"'[2]Social indicators'!$H$57","v":3.8461538461538464E-2},""]
[{"$f":"'[2]Social indicators'!$A58","v":"Olfactory pollution :"},{"$f":"'[2]Social indicators'!$B58","v":1}]
[]
[{"$f":"'[2]Social indicators'!$A60","v":"Presence of a touristic area nearby :"}]
[null,null,null,null,null,{"$f":"'[2]Social indicators'!$H$60","v":3.8461538461538464E-2},""]
[{"$f":"'[2]Social indicators'!$A61","v":"Yes"},{"$f":"'[2]Social indicators'!$B61","v":1}]
[{"$f":"'[2]Social indicators'!$A62","v":"No"},{"$f":"'[2]Social indicators'!$B62","v":0}]

{"sheet":"Technical indicators","index":14,"n_rows":123,"n_cols":8,"rows_kept":123,"cut":false,"hidden":true,"merged":[]}
["TECHNICAL INDICATORS","Max",{"$f":"'[2]Technical indicators'!$C$1","v":26},"Min",{"$f":"'[2]Technical indicators'!$E$1","v":-2},null,"Completeness rate",{"$f":"SUM(G4:G123)","v":0}]
[{"$f":"'[2]Technical indicators'!A5","v":"Landfill status and dates :"},"Points",null,"Résultat formulaire",null,"Completeness Value","Completeness"]
[{"$f":"'[2]Technical indicators'!A6","v":"Legal status"}]
[null,null,null,null,null,{"$f":"'[2]Technical indicators'!G6","v":2.9411764705882353E-2},{"$f":"IF(D4<>\"\", F4,\"\")","v":""}]
[{"$f":"'[2]Technical indicators'!A7","v":"Controlled dump"},{"$f":"'[2]Technical indicators'!B7","v":0}]
[{"$f":"'[2]Technical indicators'!A8","v":"Wild dump"},{"$f":"'[2]Technical indicators'!B8","v":1}]
[]
[{"$f":"'[2]Technical indicators'!A10","v":"Reahabilitation status"},{"$f":"'[2]Technical indicators'!B10","v":0}]
[null,null,null,null,null,{"$f":"'[2]Technical indicators'!G10","v":8.8235294117647065E-2},{"$f":"IF(D9<>\"\", F9,\"\")","v":""}]
[{"$f":"'[2]Technical indicators'!A11","v":"Rehabilitated"},{"$f":"'[2]Technical indicators'!B11","v":-1}]
[{"$f":"'[2]Technical indicators'!A12","v":"Necessary to rehabilitate"},{"$f":"'[2]Technical indicators'!B12","v":2}]
[{"$f":"'[2]Technical indicators'!A13","v":"Not necessary to rehabilitate"},{"$f":"'[2]Technical indicators'!B13","v":0}]
[]
[{"$f":"'[2]Technical indicators'!A15","v":"Age of the Landfill :"}]
[null,null,null,null,null,{"$f":"'[2]Technical indicators'!G15","v":8.8235294117647065E-2},{"$f":"IF(D15<>\"\", F15,\"\")","v":""}]
[{"$f":"'[2]Technical indicators'!A16","v":"<1955"},{"$f":"'[2]Technical indicators'!B16","v":0}]
[{"$f":"'[2]Technical indicators'!A17","v":"1955-1980"},{"$f":"'[2]Technical indicators'!B17","v":1}]
[{"$f":"'[2]Technical indicators'!A18","v":"1980-1999"},{"$f":"'[2]Technical indicators'!B18","v":2}]
[{"$f":"'[2]Technical indicators'!A19","v":">1999"},{"$f":"'[2]Technical indicators'!B19","v":3}]
[]
[{"$f":"'[2]Technical indicators'!A21","v":"Sampling :"}]
[null,null,null,null,null,{"$f":"'[2]Technical indicators'!G21","v":5.8823529411764705E-2},{"$f":"IF(D22<>\"\", F22,\"\")","v":""}]
[{"$f":"'[2]Technical indicators'!A22","v":"Sampling results available"},{"$f":"'[2]Technical indicators'!B22","v":2}]
[{"$f":"'[2]Technical indicators'!A23","v":"No sampling"},{"$f":"'[2]Technical indicators'!B23","v":0}]
[]
[null,null,null,null,null,null,""]
[{"$f":"'[2]Technical indicators'!A26","v":"Leachates treatment plant on site :"}]
[null,null,{"$f":"'[2]Technical indicators'!$C$26","v":"Description of the leachate treatment plant related to the landfill :"},null,null,{"$f":"'[2]Technical indicators'!G26","v":5.8823529411764705E-2},{"$f":"IF(AND(D28<>\"\",D28<>4), F28,\"\")","v":""}]
[{"$f":"'[2]Technical indicators'!A27","v":"Exists and operational"},{"$f":"'[2]Technical indicators'!B27","v":2},null,null,null,null,""]
[{"$f":"'[2]Technical indicators'!A28","v":"Exists and not operational (to be rehabilitated)"},{"$f":"'[2]Technical indicators'!B28","v":1},null,null,null,null,""]
[{"$f":"'[2]Technical indicators'!A29","v":"Does not exist"},{"$f":"'[2]Technical indicators'!B29","v":0},null,null,null,null,""]
[{"$f":"'[2]Technical indicators'!A30","v":"Unknown"},{"$f":"'[2]Technical indicators'!B30","v":0},null,null,null,null,""]
[null,null,null,null,null,null,""]
[{"$f":"'[2]Technical indicators'!A32","v":"Leachates treatment plant nearby :"}]
[null,null,{"$f":"'[2]Technical indicators'!$C$32","v":"Description of the nearest operational treatment plant that could receive leachates from the landfill (<10, < 20, <50 Km) :"},null,null,{"$f":"'[2]Technical indicators'!G32","v":8.8235294117647065E-2},""]
[{"$f":"'[2]Technical indicators'!A33","v":"< 10 Km"},{"$f":"'[2]Technical indicators'!B33","v":3},null,null,null,null,""]
[{"$f":"'[2]Technical indicators'!A34","v":"< 20 Km"},{"$f":"'[2]Technical indicators'!B34","v":2},null,null,null,null,""]
[{"$f":"'[2]Technical indicators'!A35","v":"< 50 Km"},{"$f":"'[2]Technical indicators'!B35","v":1},null,null,null,null,""]
[{"$f":"'[2]Technical indicators'!A36","v":">= 50 Km"},{"$f":"'[2]Technical indicators'!B36","v":0},null,null,null,null,""]
[null,null,null,null,null,null,""]
[{"$f":"'[2]Technical indicators'!A38","v":"Biogas aerial collection system :"}]
[null,null,{"$f":"'[2]Technical indicators'!$C$38","v":"All information about a gas collection system placed in the landfill, especially if the aerial system can hinder geophysics surveys."},null,null,{"$f":"'[2]Technical indicators'!G38","v":5.8823529411764705E-2},""]
[{"$f":"'[2]Technical indicators'!A39","v":"Yes"},{"$f":"'[2]Technical indicators'!B39","v":-1},null,null,null,null,""]
[{"$f":"'[2]Technical indicators'!A40","v":"No"},{"$f":"'[2]Technical indicators'!B40","v":1},null,null,null,null,""]
[null,null,null,null,null,null,""]
[{"$f":"'[2]Technical indicators'!A42","v":"Landfill Morphology :"}]
[null,null,{"$f":"'[2]Technical indicators'!$C$42","v":"Shape of the landfill and its integration in the surrounding area"},null,null,{"$f":"'[2]Technical indicators'!G42","v":5.8823529411764705E-2},""]
[{"$f":"'[2]Technical indicators'!A43","v":"Mound/heap/hill"},{"$f":"'[2]Technical indicators'!B43","v":2}]
[{"$f":"'[2]Technical indicators'!A44","v":"Depression/quarry"},{"$f":"'[2]Technical indicators'!B44","v":1}]
[{"$f":"'[2]Technical indicators'!A45","v":"Open dump"},{"$f":"'[2]Technical indicators'!B45","v":2}]
[{"$f":"'[2]Technical indicators'!A46","v":"50% aboveground/50 underground"},{"$f":"'[2]Technical indicators'!B46","v":1}]
[{"$f":"'[2]Technical indicators'!A47","v":"Slope/along a valley"},{"$f":"'[2]Technical indicators'!B47","v":0}]
[{"$f":"'[2]Technical indicators'!A48","v":"Lagoon/pond"},{"$f":"'[2]Technical indicators'!B48","v":2}]
[]
[{"$f":"'[2]Technical indicators'!A50","v":"Surface morphology :"}]
[null,null,null,null,null,{"$f":"'[2]Technical indicators'!$G$50","v":0},{"$f":"IF(D56<>\"\", F56,\"\")","v":""}]
[{"$f":"'[2]Technical indicators'!A51","v":"Grass"},{"$f":"'[2]Technical indicators'!B51","v":0},null,null,null,null,""]
[{"$f":"'[2]Technical indicators'!A52","v":"Rough"},{"$f":"'[2]Technical indicators'!B52","v":0},null,null,null,null,""]
[{"$f":"'[2]Technical indicators'!A53","v":"Shrubs"},{"$f":"'[2]Technical indicators'!B53","v":0},null,null,null,null,""]
[{"$f":"'[2]Technical indicators'!A54","v":"Trees"},{"$f":"'[2]Technical indicators'!B54","v":0},null,null,null,null,""]
[{"$f":"'[2]Technical indicators'!A55","v":"Other"},{"$f":"'[2]Technical indicators'!B55","v":0},null,null,null,null,""]
[null,null,null,null,null,null,""]
[{"$f":"'[2]Technical indicators'!A57","v":"Waste heights/depth :"},null,null,null,null,{"$f":"'[2]Technical indicators'!G57","v":0.11764705882352941},{"$f":"IF(D65<>\"\", F63,\"\")","v":""}]
[{"$f":"'[2]Technical indicators'!A58","v":"Average (most present) thickness of wastes [m] :"}]
[]
[{"$f":"'[2]Technical indicators'!A59","v":"0-5 m"},{"$f":"'[2]Technical indicators'!B59","v":5}]
[{"$f":"'[2]Technical indicators'!A60","v":"5-10 m"},{"$f":"'[2]Technical indicators'!B60","v":4},null,null,null,null,""]
[{"$f":"'[2]Technical indicators'!A61","v":"10-20 m"},{"$f":"'[2]Technical indicators'!B61","v":2},null,null,null,null,""]
[{"$f":"'[2]Technical indicators'!A62","v":">20 m"},{"$f":"'[2]Technical indicators'!B62","v":1},null,null,null,null,""]
[null,null,null,null,null,null,""]
[{"$f":"'[2]Technical indicators'!A64","v":"Stability of the waste deposit"},null,{"$f":"'[2]Technical indicators'!$C$64","v":"This information is related to the probability to encounter any issue related to the stability of the whole waste deposit."},null,null,null,""]
[{"$f":"'[2]Technical indicators'!A65","v":"Slope : "}]
[null,null,null,null,null,{"$f":"'[2]Technical indicators'!G65","v":2.9411764705882353E-2},""]
[{"$f":"'[2]Technical indicators'!A66","v":"Steep slopes (more than 15° from horizontal)"},{"$f":"'[2]Technical indicators'!B66","v":0},{"$f":"'[2]Technical indicators'!$C$66","v":"“Slope” and “water table” can be measured physically while “risk” will be an appreciation hanging on the nature and age of waste, their thickness, their slope, the presence of water, field observations and experience of similar cases."},null,null,null,""]
[{"$f":"'[2]Technical indicators'!A67","v":"Gentle slopes (less than 15° from horizontal)"},{"$f":"'[2]Technical indicators'!B67","v":1},null,null,null,null,""]
[{"$f":"'[2]Technical indicators'!A68","v":"No slope"},{"$f":"'[2]Technical indicators'!B68","v":1}]
[]
[{"$f":"'[2]Technical indicators'!A69","v":"Water table : "}]
[null,null,null,null,null,{"$f":"'[2]Technical indicators'!G69","v":5.8823529411764705E-2},""]
[{"$f":"'[2]Technical indicators'!A70","v":"Water table within the landfill (<5 m depth)"},{"$f":"'[2]Technical indicators'!B70","v":0},null,null,null,null,""]
[{"$f":"'[2]Technical indicators'!A71","v":"Water table within the landfill (<10 m depth)"},{"$f":"'[2]Technical indicators'!B71","v":1},null,null,null,null,""]
[{"$f":"'[2]Technical indicators'!A72","v":"No water table within the landfill"},{"$f":"'[2]Technical indicators'!B72","v":2},null,null,null,null,""]
[{"$f":"'[2]Technical indicators'!A73","v":"No information about the water table"},{"$f":"'[2]Technical indicators'!B73","v":0},null,null,null,null,""]
[]
[{"$f":"'[2]Technical indicators'!A74","v":"Risk of collapse during future excavation works :"}]
[null,null,null,null,null,{"$f":"'[2]Technical indicators'!G74","v":5.8823529411764705E-2},""]
[{"$f":"'[2]Technical indicators'!A75","v":"High risk"},{"$f":"'[2]Technical indicators'!B75","v":-2},null,null,null,null,""]
[{"$f":"'[2]Technical indicators'!A76","v":"Medium risk "},{"$f":"'[2]Technical indicators'!B76","v":0},null,null,null,null,""]
[{"$f":"'[2]Technical indicators'!A77","v":"Low risk "},{"$f":"'[2]Technical indicators'!B77","v":2},null,null,null,null,""]
[null,null,null,null,null,null,""]
[{"$f":"'[2]Technical indicators'!A79","v":"Top layer "},null,null,null,null,null,""]
[{"$f":"'[2]Technical indicators'!A80","v":"Watertightness layer :"}]
[null,null,null,null,null,{"$f":"'[2]Technical indicators'!G80","v":2.9411764705882353E-2},""]
[{"$f":"'[2]Technical indicators'!A81","v":"Presence of a watertightness layer"},{"$f":"'[2]Technical indicators'!B81","v":1},null,null,null,null,""]
[{"$f":"'[2]Technical indicators'!A82","v":"No specific watertightness layer"},{"$f":"'[2]Technical indicators'!B82","v":0},null,null,null,null,""]
[]
[{"$f":"'[2]Technical indicators'!A83","v":"Rainwater drainage :"}]
[null,null,null,null,null,{"$f":"'[2]Technical indicators'!G83","v":5.8823529411764705E-2},""]
[{"$f":"'[2]Technical indicators'!A84","v":"Presence of a rainwater drainage"},{"$f":"'[2]Technical indicators'!B84","v":2},null,null,null,null,""]
[{"$f":"'[2]Technical indicators'!A85","v":"No specific rainwater drainage layer"},{"$f":"'[2]Technical indicators'!B85","v":0},null,null,null,null,{"$f":"IF(D100<>\"\", F100,\"\")","v":""}]
[]
[{"$f":"'[2]Technical indicators'!A86","v":"Gas drainage :"}]
[null,null,null,null,null,{"$f":"'[2]Technical indicators'!G86","v":2.9411764705882353E-2},""]
[{"$f":"'[2]Technical indicators'!A87","v":"Presence of a gas drainage"},{"$f":"'[2]Technical indicators'!B87","v":1}]
[{"$f":"'[2]Technical indicators'!A88","v":"No specific gas drainage layer"},{"$f":"'[2]Technical indicators'!B88","v":0}]
[]
[{"$f":"'[2]Technical indicators'!A89","v":"Type of cover :"},null,null,null,null,{"$f":"'[2]Technical indicators'!G89","v":0},{"$f":"IF(D108<>\"\", F107,\"\")","v":""}]
[]
[{"$f":"'[2]Technical indicators'!A90","v":"Geomembrane"},{"$f":"'[2]Technical indicators'!B90","v":0}]
[{"$f":"'[2]Technical indicators'!A91","v":"Mineral cover"},{"$f":"'[2]Technical indicators'!B91","v":0}]
[{"$f":"'[2]Technical indicators'!A92","v":"Soil"},{"$f":"'[2]Technical indicators'!B92","v":0}]
[{"$f":"'[2]Technical indicators'!A93","v":"Waste"},{"$f":"'[2]Technical indicators'!B93","v":0}]
[null,null,null,null,null,null,""]
[{"$f":"'[2]Technical indicators'!A95","v":"Bottom layer"},null,null,null,null,null,""]
[{"$f":"'[2]Technical indicators'!A96","v":"Watertightness :"}]
[null,null,null,null,null,{"$f":"'[2]Technical indicators'!G96","v":5.8823529411764705E-2},""]
[{"$f":"'[2]Technical indicators'!A97","v":"Presence of watertightness (clay/geomembrane)"},{"$f":"'[2]Technical indicators'!B97","v":2},null,null,null,null,""]
[{"$f":"'[2]Technical indicators'!A98","v":"No specific watertightness layer"},{"$f":"'[2]Technical indicators'!B98","v":0},null,null,null,null,""]
[]
[{"$f":"'[2]Technical indicators'!A99","v":"Leachate drainage layer :"}]
[null,null,null,null,null,{"$f":"'[2]Technical indicators'!G99","v":2.9411764705882353E-2},""]
[{"$f":"'[2]Technical indicators'!A100","v":"Presence of leachate drainage layer"},{"$f":"'[2]Technical indicators'!B100","v":1},null,null,null,null,""]
[{"$f":"'[2]Technical indicators'!A101","v":"No specific leachate drainage layer"},{"$f":"'[2]Technical indicators'!B101","v":0},null,null,null,null,""]

{"sheet":"Economical indicators","index":15,"n_rows":256,"n_cols":12,"rows_kept":256,"cut":false,"hidden":true,"merged":[]}
["ECONOMICAL INDICATORS","MAX :",{"$f":"'[2]Economical indicators'!$C$1","v":168},"MIN :",{"$f":"'[2]Economical indicators'!$E$1","v":-23},null,"Completeness rate",{"$f":"SUM(G4:G109)+SUM(G118:G233)+SUM(L234)","v":0}]
[null,"Points",null,"Résultats formulaire",null,"Completeness Value","Completeness"]
[{"$f":"'[2]Economical indicators'!A5","v":"Regional policy encouraging ELFM :"}]
[null,null,null,null,null,{"$f":"'[2]Economical indicators'!G5","v":1.0416666666666666E-2},{"$f":"IF(D4<>\"\", F4,\"\")","v":""}]
[{"$f":"'[2]Economical indicators'!A6","v":"Yes"},{"$f":"'[2]Economical indicators'!B6","v":2}]
[{"$f":"'[2]Economical indicators'!A7","v":"No"},{"$f":"'[2]Economical indicators'!B7","v":0}]
[]
[{"$f":"'[2]Economical indicators'!A9","v":"Regional incentives encouraging ELFM :"}]
[null,null,null,null,null,{"$f":"'[2]Economical indicators'!G9","v":1.0416666666666666E-2},{"$f":"IF(D9<>\"\", F9,\"\")","v":""}]
[{"$f":"'[2]Economical indicators'!A10","v":"Yes"},{"$f":"'[2]Economical indicators'!B10","v":2}]
[{"$f":"'[2]Economical indicators'!A11","v":"No"},{"$f":"'[2]Economical indicators'!B11","v":0}]
[]
[{"$f":"'[2]Economical indicators'!A13","v":"Site specific ELFM facilitation procedures :"}]
[null,null,null,null,null,{"$f":"'[2]Economical indicators'!G13","v":1.0416666666666666E-2},{"$f":"IF(D14<>\"\", F14,\"\")","v":""}]
[{"$f":"'[2]Economical indicators'!A14","v":"Exists"},{"$f":"'[2]Economical indicators'!B14","v":2}]
[{"$f":"'[2]Economical indicators'!A15","v":"Does not exist"},{"$f":"'[2]Economical indicators'!B15","v":0}]
[]
[{"$f":"'[2]Economical indicators'!A17","v":"Regional authorization for in-situ relandfilling :"}]
[null,null,null,null,null,{"$f":"'[2]Economical indicators'!G17","v":2.0833333333333332E-2},{"$f":"IF(D19<>\"\", F19,\"\")","v":""}]
[{"$f":"'[2]Economical indicators'!A18","v":"Authorized"},{"$f":"'[2]Economical indicators'!B18","v":2}]
[{"$f":"'[2]Economical indicators'!A19","v":"Not authorized"},{"$f":"'[2]Economical indicators'!B19","v":-2}]
[]
[{"$f":"'[2]Economical indicators'!A21","v":"Regional authorization for relandfilling at another landfill :"}]
[null,null,null,null,null,{"$f":"'[2]Economical indicators'!G21","v":1.0416666666666666E-2},{"$f":"IF(D24<>\"\", F24,\"\")","v":""}]
[{"$f":"'[2]Economical indicators'!A22","v":"Authorized"},{"$f":"'[2]Economical indicators'!B22","v":2}]
[{"$f":"'[2]Economical indicators'!A23","v":"Not authorized"},{"$f":"'[2]Economical indicators'!B23","v":0}]
[]
[{"$f":"'[2]Economical indicators'!A25","v":"Ownership :"}]
[null,null,null,null,null,{"$f":"'[2]Economical indicators'!G25","v":5.208333333333333E-3},{"$f":"IF(D29<>\"\", F29,\"\")","v":""}]
[{"$f":"'[2]Economical indicators'!A26","v":"1 or 2 owners"},{"$f":"'[2]Economical indicators'!B26","v":1}]
[{"$f":"'[2]Economical indicators'!A27","v":"More than 2 owners"},{"$f":"'[2]Economical indicators'!B27","v":0}]
[]
[{"$f":"'[2]Economical indicators'!A29","v":"Legal status of the landfill :"}]
[null,null,null,null,null,{"$f":"'[2]Economical indicators'!G29","v":1.0416666666666666E-2},{"$f":"IF(D34<>\"\", F34,\"\")","v":""}]
[{"$f":"'[2]Economical indicators'!A30","v":"Legal covered by a permit"},{"$f":"'[2]Economical indicators'!B30","v":1}]
[{"$f":"'[2]Economical indicators'!A31","v":"Legal but without any permit"},{"$f":"'[2]Economical indicators'!B31","v":0}]
[{"$f":"'[2]Economical indicators'!A32","v":"Illegal"},{"$f":"'[2]Economical indicators'!B32","v":-1}]
[{"$f":"'[2]Economical indicators'!A33","v":"Unknown"},{"$f":"'[2]Economical indicators'!B33","v":0}]
[{"$f":"'[2]Economical indicators'!A34","v":"Specific (special status)"},{"$f":"'[2]Economical indicators'!B34","v":-1}]
[]
[{"$f":"'[2]Economical indicators'!A36","v":"Fence/site protection :"}]
[null,null,null,null,null,{"$f":"'[2]Economical indicators'!G36","v":5.208333333333333E-3},{"$f":"IF(D42<>\"\", F42,\"\")","v":""}]
[{"$f":"'[2]Economical indicators'!A37","v":"Already protected"},{"$f":"'[2]Economical indicators'!B37","v":1}]
[{"$f":"'[2]Economical indicators'!A38","v":"Not protected"},{"$f":"'[2]Economical indicators'!B38","v":0}]
[]
[{"$f":"'[2]Economical indicators'!A40","v":"Buried volume [m³] :"}]
[null,null,"(measured with good precision or estimated)",null,null,{"$f":"'[2]Economical indicators'!G40","v":5.2083333333333336E-2},{"$f":"IF(AND(D47<>\"\",D47<>3), F47,\"\")","v":""}]
[{"$f":"'[2]Economical indicators'!A41","v":"Mesured"},{"$f":"'[2]Economical indicators'!B41","v":1},"x 10 x (volume of the landfill/volume of the biggest landfill)",null,null,null,{"$f":"IF(D48<>\"\", F48,\"\")","v":""}]
[{"$f":"'[2]Economical indicators'!A42","v":"Estimated"},{"$f":"'[2]Economical indicators'!B42","v":0.5},"x 10 x (volume of the landfill/volume of the biggest landfill)",null,null,null,{"$f":"IF(D49<>\"\", F49,\"\")","v":""}]
[{"$f":"'[2]Economical indicators'!A43","v":"Unknown"},{"$f":"'[2]Economical indicators'!B43","v":0},null,null,null,null,{"$f":"IF(D50<>\"\", F50,\"\")","v":""}]
[]
[{"$f":"'[2]Economical indicators'!A45","v":"Less than 100 000 m³ of waste"},{"$f":"'[2]Economical indicators'!B45","v":0},null,null,null,null,{"$f":"IF(D52<>\"\", F52,\"\")","v":""}]
[{"$f":"'[2]Economical indicators'!A46","v":"100 000 m³ to 500 000 m³ of waste"},{"$f":"'[2]Economical indicators'!B46","v":5},null,null,null,null,{"$f":"IF(D53<>\"\", F53,\"\")","v":""}]
[{"$f":"'[2]Economical indicators'!A47","v":"More than 500 000 m³ of waste"},{"$f":"'[2]Economical indicators'!B47","v":10},null,null,null,null,{"$f":"IF(D54<>\"\", F54,\"\")","v":""}]
[null,null,null,null,null,null,{"$f":"IF(D55<>\"\", F55,\"\")","v":""}]
[{"$f":"'[2]Economical indicators'!A49","v":"New available volume :"},null,{"$f":"'[2]Economical indicators'!$C$49","v":"Estimation of volume available to receive new waste (i.e. ultimate waste from another ELFM project) or materials (i.e . soil for shaping the final landfill after ELFM operations). In some cases, a large volume can be used for other operations as well."},null,null,{"$f":"'[2]Economical indicators'!G49","v":3.6458333333333336E-2},{"$f":"IF(D63<>\"\", F56,\"\")","v":""}]
[{"$f":"'[2]Economical indicators'!A50","v":"Factor :"}]
[]
[{"$f":"'[2]Economical indicators'!A51","v":"Mesured"},{"$f":"'[2]Economical indicators'!B51","v":2}]
[{"$f":"'[2]Economical indicators'!A52","v":"Estimated"},{"$f":"'[2]Economical indicators'!B52","v":1}]
[]
[{"$f":"'[2]Economical indicators'!A53","v":"Volume :"}]
[]
[{"$f":"'[2]Economical indicators'!A54","v":"> 1 000 000 m³"},{"$f":"'[2]Economical indicators'!B54","v":4}]
[{"$f":"'[2]Economical indicators'!A55","v":"500 000 to 1 000 000 m³"},{"$f":"'[2]Economical indicators'!B55","v":3}]
[{"$f":"'[2]Economical indicators'!A56","v":"100 000 to 500 000 m³"},{"$f":"'[2]Economical indicators'!B56","v":2}]
[{"$f":"'[2]Economical indicators'!A57","v":"< 100 000 m³"},{"$f":"'[2]Economical indicators'!B57","v":1}]
[]
[{"$f":"'[2]Economical indicators'!A59","v":"Remediation costs :"},null,{"$f":"'[2]Economical indicators'!$C$59","v":"Estimation of rehabilitation costs in € at date of data sheet."},null,null,{"$f":"'[2]Economical indicators'!G59","v":2.6041666666666668E-2},{"$f":"IF('Economical form'!B36<>1, F69,\"\")","v":""}]
[{"$f":"'[2]Economical indicators'!A60","v":"Factor (€ x factor) :"},{"$f":"'[2]Economical indicators'!B60","v":5}]
[{"$f":"'[2]Economical indicators'!A61","v":"€"},{"$f":"'[2]Economical indicators'!B61","v":"(remediation cost of the landfill/higher remediation cost)"}]
[{"$f":"'[2]Economical indicators'!A62","v":"Aftercare costs :"},null,{"$f":"'[2]Economical indicators'!$C$62","v":"Estimation of aftercare costs in € at date of data sheet."},null,null,{"$f":"'[2]Economical indicators'!G62","v":2.6041666666666668E-2},{"$f":"IF('Economical form'!B39<>1, F72,\"\")","v":""}]
[{"$f":"'[2]Economical indicators'!A63","v":"Factor (€ x factor) :"},{"$f":"'[2]Economical indicators'!B63","v":5}]
[{"$f":"'[2]Economical indicators'!A64","v":"€"},{"$f":"'[2]Economical indicators'!B64","v":"(aftercare cost of the landfill/higher aftercare cost)"}]
[]
[{"$f":"'[2]Economical indicators'!A66","v":"Territorial strategy aspects :"}]
[null,null,null,null,null,{"$f":"'[2]Economical indicators'!G66","v":1.0416666666666666E-2},{"$f":"IF(D77<>\"\", F77,\"\")","v":""}]
[{"$f":"'[2]Economical indicators'!A67","v":"Landfill included in a territorial development zone plan"},{"$f":"'[2]Economical indicators'!B67","v":2}]
[{"$f":"'[2]Economical indicators'!A68","v":"Landfill not included in a territorial development zone plan"},{"$f":"'[2]Economical indicators'!B68","v":0}]
[]
[{"$f":"'[2]Economical indicators'!A70","v":"Land pressure :"}]
[null,null,null,null,null,{"$f":"'[2]Economical indicators'!G70","v":5.2083333333333336E-2},{"$f":"IF(D82<>\"\", F82,\"\")","v":""}]
[{"$f":"'[2]Economical indicators'!A71","v":"High land pressure"},{"$f":"'[2]Economical indicators'!B71","v":10},null,null,null,null,""]
[{"$f":"'[2]Economical indicators'!A72","v":"Medium land pressure"},{"$f":"'[2]Economical indicators'!B72","v":5},null,null,null,null,""]
[{"$f":"'[2]Economical indicators'!A73","v":"Low land pressure"},{"$f":"'[2]Economical indicators'!B73","v":0},null,null,null,null,""]
[null,null,null,null,null,null,""]
[{"$f":"'[2]Economical indicators'!A75","v":"Access for landfill mining operations"},null,null,null,null,null,""]
[]
[{"$f":"'[2]Economical indicators'!A76","v":"Paved roads :"}]
[]
[{"$f":"'[2]Economical indicators'!A77","v":"Yes"},{"$f":"'[2]Economical indicators'!B77","v":1}]
[{"$f":"'[2]Economical indicators'!A78","v":"No"},{"$f":"'[2]Economical indicators'!B78","v":0}]
[]
[{"$f":"'[2]Economical indicators'!A79","v":"Heavy truck :"}]
[null,null,null,null,null,{"$f":"'[2]Economical indicators'!G79","v":2.0833333333333332E-2},""]
[{"$f":"'[2]Economical indicators'!A80","v":"Yes"},{"$f":"'[2]Economical indicators'!B80","v":4},null,null,null,null,""]
[{"$f":"'[2]Economical indicators'!A81","v":"No"},{"$f":"'[2]Economical indicators'!B81","v":0}]
[{"$f":"'[2]Economical indicators'!A82","v":"An access can be arranged"},{"$f":"'[2]Economical indicators'!B82","v":2},null,null,null,null,""]
[]
[]
[{"$f":"'[2]Economical indicators'!A83","v":"Distance to main road :"}]
[null,null,null,null,null,{"$f":"'[2]Economical indicators'!G83","v":2.0833333333333332E-2},""]
[{"$f":"'[2]Economical indicators'!A84","v":"< 5000 m"},{"$f":"'[2]Economical indicators'!B84","v":4}]
[{"$f":"'[2]Economical indicators'!A85","v":">= 5000 m"},{"$f":"'[2]Economical indicators'!B85","v":0}]
[]
[{"$f":"'[2]Economical indicators'!A86","v":"Distance to nearest harbour :"}]
[null,null,null,null,null,{"$f":"'[2]Economical indicators'!G86","v":1.0416666666666666E-2},{"$f":"IF(D107<>\"\", F107,\"\")","v":""}]
[{"$f":"'[2]Economical indicators'!A87","v":"< 20000 m"},{"$f":"'[2]Economical indicators'!B87","v":2}]
[{"$f":"'[2]Economical indicators'!A88","v":">= 20000 m"},{"$f":"'[2]Economical indicators'!B88","v":0}]
[]
[{"$f":"'[2]Economical indicators'!A89","v":"Distance to nearest rail station :"}]
[]
[{"$f":"'[2]Economical indicators'!A90","v":"< 20000 m"},{"$f":"'[2]Economical indicators'!B90","v":0}]
[{"$f":"'[2]Economical indicators'!A91","v":">= 20000 m"},{"$f":"'[2]Economical indicators'!B91","v":0}]
[]
[{"$f":"'[2]Economical indicators'!A93","v":"Facilities for landfill mining operations "},null,null,null,{"$f":"'[2]Economical indicators'!F$94","v":"Incineration plant :"},{"$f":"'[2]Economical indicators'!G$94","v":"Cement factories :"},{"$f":"'[2]Economical indicators'!H$94","v":"Waste treatment plant (in general) :"},{"$f":"'[2]Economical indicators'!I$94","v":"Landfill for hazardous waste :"},{"$f":"'[2]Economical indicators'!J$94","v":"Landfill for non hazardous waste :"},{"$f":"'[2]Economical indicators'!K$94","v":"MBT plant :"}]
[null,null,{"$f":"'[2]Economical indicators'!$C$93","v":"Distance to a waste treatment unit or another operational landfill that can receive ultimate waste from an ELFM project."}]
[{"$f":"'[2]Economical indicators'!A94","v":"No facilities identified"},{"$f":"'[2]Economical indicators'!B94","v":0},null,null,null,{"$f":"'[2]Economical indicators'!G93","v":0.15625},{"$f":"IF(D117<>\"\", F118,\"\")","v":""}]
[{"$f":"'[2]Economical indicators'!A95","v":"On site"},{"$f":"'[2]Economical indicators'!B95","v":5}]
[{"$f":"'[2]Economical indicators'!A96","v":"< 30 Km"},{"$f":"'[2]Economical indicators'!B96","v":3},"x number of identified unit or landfill"]
[{"$f":"'[2]Economical indicators'!A97","v":"30 to 50 Km"},{"$f":"'[2]Economical indicators'!B97","v":2},"x number of identified unit or landfill"]
[{"$f":"'[2]Economical indicators'!A98","v":"50 to 100 Km"},{"$f":"'[2]Economical indicators'!B98","v":1},"x number of identified unit or landfill"]
[{"$f":"'[2]Economical indicators'!A99","v":">100 Km"},{"$f":"'[2]Economical indicators'!B99","v":0},"x number of identified unit or landfill"]
[]
[{"$f":"'[2]Economical indicators'!A101","v":"Leachates treatment plant on site :"}]
[null,null,null,null,null,{"$f":"'[2]Economical indicators'!G101","v":2.6041666666666668E-2},{"$f":"IF(AND(D126<>\"\",D126<>4), F126,\"\")","v":""}]
[{"$f":"'[2]Economical indicators'!A102","v":"Exists and operational"},{"$f":"'[2]Economical indicators'!B102","v":5}]
[{"$f":"'[2]Economical indicators'!A103","v":"Exists and not operational (to be rehabilitated)"},{"$f":"'[2]Economical indicators'!B103","v":2}]
[{"$f":"'[2]Economical indicators'!A104","v":"Does not exist"},{"$f":"'[2]Economical indicators'!B104","v":0}]
[{"$f":"'[2]Economical indicators'!A105","v":"Unknown"},{"$f":"'[2]Economical indicators'!B105","v":0}]
[]
[{"$f":"'[2]Economical indicators'!A107","v":"Leachates treatment plant nearby :"}]
[null,null,null,null,null,{"$f":"'[2]Economical indicators'!G107","v":1.5625E-2},{"$f":"IF(D133<>\"\", F133,\"\")","v":""}]
[{"$f":"'[2]Economical indicators'!A108","v":"< 10 Km"},{"$f":"'[2]Economical indicators'!B108","v":3}]
[{"$f":"'[2]Economical indicators'!A109","v":"10 to 20 Km"},{"$f":"'[2]Economical indicators'!B109","v":2}]
[{"$f":"'[2]Economical indicators'!A110","v":"20 to 50 Km"},{"$f":"'[2]Economical indicators'!B110","v":1}]
[{"$f":"'[2]Economical indicators'!A111","v":">= 50 Km"},{"$f":"'[2]Economical indicators'!B111","v":0}]
[]
[{"$f":"'[2]Economical indicators'!A118","v":"Fragmentation :"}]
[null,null,null,null,null,{"$f":"'[2]Economical indicators'!G118","v":5.208333333333333E-3},{"$f":"IF(D140<>\"\", F140,\"\")","v":""}]
[{"$f":"'[2]Economical indicators'!A119","v":"In one place"},{"$f":"'[2]Economical indicators'!B119","v":1}]
[{"$f":"'[2]Economical indicators'!A120","v":"Spread in several locations"},{"$f":"'[2]Economical indicators'!B120","v":0}]
[]
[{"$f":"'[2]Economical indicators'!A122","v":"Main waste type :"}]
[null,null,null,null,null,{"$f":"'[2]Economical indicators'!G122","v":1.5625E-2},{"$f":"IF(D145<>\"\", F145,\"\")","v":""}]
[{"$f":"'[2]Economical indicators'!A123","v":"Municipal - household - domestic waste"},{"$f":"'[2]Economical indicators'!B123","v":2}]
[{"$f":"'[2]Economical indicators'!A124","v":"Inert waste (construction waste)"},{"$f":"'[2]Economical indicators'!B124","v":1}]
[{"$f":"'[2]Economical indicators'!A125","v":"Inert waste (industrial waste)"},{"$f":"'[2]Economical indicators'!B125","v":2}]
[{"$f":"'[2]Economical indicators'!A126","v":"Industrial Waste"},{"$f":"'[2]Economical indicators'!B126","v":3}]
[{"$f":"'[2]Economical indicators'!A127","v":"Military waste/UXOs"},{"$f":"'[2]Economical indicators'!B127","v":1}]
[{"$f":"'[2]Economical indicators'!A128","v":"Mixed waste"},{"$f":"'[2]Economical indicators'!B128","v":0}]
[]
[]
[{"$f":"'[2]Economical indicators'!A130","v":"Specific waste stream "},null,null,null,null,{"$f":"'[2]Economical indicators'!G130","v":0.15625},{"$f":"IF(COUNTA(E162:E171)=0,\"\",F154)","v":""}]
[{"$f":"'[2]Economical indicators'!A131","v":"Factor : "}]
[]
[{"$f":"'[2]Economical indicators'!A132","v":"Measured"},{"$f":"'[2]Economical indicators'!B132","v":1}]
[{"$f":"'[2]Economical indicators'!A133","v":"Estimated"},{"$f":"'[2]Economical indicators'!B133","v":0.5}]
[]
[{"$f":"'[2]Economical indicators'!A134","v":"Waste type : "}]
[]
[{"$f":"'[2]Economical indicators'!A135","v":"Dredging sludges"},{"$f":"'[2]Economical indicators'!B135","v":0.1},"x % in landfill",{"$f":"'Economical form'!B79","v":0}]
[{"$f":"'[2]Economical indicators'!A136","v":"Construction waste"},{"$f":"'[2]Economical indicators'!B136","v":0.2},"x % in landfill",{"$f":"'Economical form'!B80","v":0}]
[{"$f":"'[2]Economical indicators'!A137","v":"Water purification sludges"},{"$f":"'[2]Economical indicators'!B137","v":0.1},"x % in landfill",{"$f":"'Economical form'!B81","v":0}]
[{"$f":"'[2]Economical indicators'!A138","v":"Gypsum"},{"$f":"'[2]Economical indicators'!B138","v":0.2},"x % in landfill",{"$f":"'Economical form'!B82","v":0}]
[{"$f":"'[2]Economical indicators'!A139","v":"Fly ashes"},{"$f":"'[2]Economical indicators'!B139","v":0.2},"x % in landfill",{"$f":"'Economical form'!B83","v":0}]
[{"$f":"'[2]Economical indicators'!A140","v":"Asbestos"},{"$f":"'[2]Economical indicators'!B140","v":0},"x % in landfill",{"$f":"'Economical form'!B84","v":0}]
[{"$f":"'[2]Economical indicators'!A141","v":"Slags"},{"$f":"'[2]Economical indicators'!B141","v":0.2},"x % in landfill",{"$f":"'Economical form'!B85","v":0}]
[{"$f":"'[2]Economical indicators'!A142","v":"Mining waste"},{"$f":"'[2]Economical indicators'!B142","v":0.2},"x % in landfill",{"$f":"'Economical form'!B86","v":0}]
[{"$f":"'[2]Economical indicators'!A143","v":"Lime"},{"$f":"'[2]Economical indicators'!B143","v":0.3},"x % in landfill",{"$f":"'Economical form'!B87","v":0}]
[{"$f":"'[2]Economical indicators'!A144","v":"Contaminated soils"},{"$f":"'[2]Economical indicators'!B144","v":0},"x % in landfill",{"$f":"'Economical form'!B88","v":0}]
[{"$f":"'[2]Economical indicators'!A145","v":"Other : …"},{"$f":"'[2]Economical indicators'!B145","v":0},"x % in landfill",{"$f":"'Economical form'!B89","v":0}]
[]
[{"$f":"'[2]Economical indicators'!A147","v":"Radioactive waste :"}]
[null,null,null,null,null,{"$f":"'[2]Economical indicators'!G147","v":3.125E-2},{"$f":"IF(AND(D175<>\"\",D175<>4), F175,\"\")","v":""}]
[{"$f":"'[2]Economical indicators'!A148","v":"Assessed"},{"$f":"'[2]Economical indicators'!B148","v":-6},null,null,null,null,{"$f":"IF(D176<>\"\", F176,\"\")","v":""}]
[{"$f":"'[2]Economical indicators'!A149","v":"Possible"},{"$f":"'[2]Economical indicators'!B149","v":-4},null,null,null,null,""]
[{"$f":"'[2]Economical indicators'!A150","v":"None"},{"$f":"'[2]Economical indicators'!B150","v":0},null,null,null,null,""]
[{"$f":"'[2]Economical indicators'!A151","v":"Unknown"},{"$f":"'[2]Economical indicators'!B151","v":-2},null,null,null,null,""]
[null,null,null,null,null,null,""]
[{"$f":"'[2]Economical indicators'!A153","v":"Hazardous hospital waste :"}]
[null,null,null,null,null,{"$f":"'[2]Economical indicators'!G153","v":1.5625E-2},{"$f":"IF(AND(D182<>\"\",D182<>4), F182,\"\")","v":""}]
[{"$f":"'[2]Economical indicators'!A154","v":"Assessed"},{"$f":"'[2]Economical indicators'!B154","v":-3}]
[{"$f":"'[2]Economical indicators'!A155","v":"Possible"},{"$f":"'[2]Economical indicators'!B155","v":-2}]
[{"$f":"'[2]Economical indicators'!A156","v":"None"},{"$f":"'[2]Economical indicators'!B156","v":0}]
[{"$f":"'[2]Economical indicators'!A157","v":"Unknown"},{"$f":"'[2]Economical indicators'!B157","v":-2}]
[]
[{"$f":"'[2]Economical indicators'!A159","v":"Hazardous military waste:"}]
[null,null,null,null,null,{"$f":"'[2]Economical indicators'!G159","v":3.125E-2},{"$f":"IF(AND(D189<>\"\",D189<>4), F189,\"\")","v":""}]
[{"$f":"'[2]Economical indicators'!A160","v":"Assessed"},{"$f":"'[2]Economical indicators'!B160","v":-6}]
[{"$f":"'[2]Economical indicators'!A161","v":"Possible"},{"$f":"'[2]Economical indicators'!B161","v":-4}]
[{"$f":"'[2]Economical indicators'!A162","v":"None"},{"$f":"'[2]Economical indicators'!B162","v":0}]
[{"$f":"'[2]Economical indicators'!A163","v":"Unknown"},{"$f":"'[2]Economical indicators'!B163","v":-2}]
[]
[{"$f":"'[2]Economical indicators'!A165","v":"Asbestos :"}]
[null,null,null,null,null,{"$f":"'[2]Economical indicators'!G165","v":1.5625E-2},{"$f":"IF(AND(D196<>\"\",D196<>4), F196,\"\")","v":""}]
[{"$f":"'[2]Economical indicators'!A166","v":"Assessed"},{"$f":"'[2]Economical indicators'!B166","v":-3}]
[{"$f":"'[2]Economical indicators'!A167","v":"Possible"},{"$f":"'[2]Economical indicators'!B167","v":-2}]
[{"$f":"'[2]Economical indicators'!A168","v":"None"},{"$f":"'[2]Economical indicators'!B168","v":0}]
[{"$f":"'[2]Economical indicators'!A169","v":"Unknown"},{"$f":"'[2]Economical indicators'!B169","v":-2}]
[]
[{"$f":"'[2]Economical indicators'!A171","v":"Main physical state :"}]
[null,null,null,null,null,{"$f":"'[2]Economical indicators'!G171","v":5.208333333333333E-3},{"$f":"IF(D203<>\"\", F203,\"\")","v":""}]
[{"$f":"'[2]Economical indicators'!A172","v":"Solid waste"},{"$f":"'[2]Economical indicators'!B172","v":2}]
[{"$f":"'[2]Economical indicators'!A173","v":"Powdered waste"},{"$f":"'[2]Economical indicators'!B173","v":2}]
[{"$f":"'[2]Economical indicators'!A174","v":"Sludge"},{"$f":"'[2]Economical indicators'!B174","v":1}]
[{"$f":"'[2]Economical indicators'!A175","v":"Liquid"},{"$f":"'[2]Economical indicators'!B175","v":2}]
[]
[{"$f":"'[2]Economical indicators'!A113","v":"Landfill producing leachates :"}]
[null,null,null,null,null,{"$f":"'[2]Economical indicators'!G113","v":1.0416666666666666E-2},{"$f":"IF(AND(D210<>\"\",D210<>3), F210,\"\")","v":""}]
[{"$f":"'[2]Economical indicators'!A114","v":"Yes"},{"$f":"'[2]Economical indicators'!B114","v":0}]
[{"$f":"'[2]Economical indicators'!A115","v":"No"},{"$f":"'[2]Economical indicators'!B115","v":2}]
[{"$f":"'[2]Economical indicators'!A116","v":"Unknown"},{"$f":"'[2]Economical indicators'!B116","v":1}]
[]
[{"$f":"'[2]Economical indicators'!A177","v":"Daily cover"},null,null,null,null,{"$f":"'[2]Economical indicators'!G177","v":1.5625E-2},{"$f":"IF(D215<>\"\", F215,\"\")","v":""}]
[{"$f":"'[2]Economical indicators'!A178","v":"Use of daily cover"}]
[null,null,null,2]
[{"$f":"'[2]Economical indicators'!A179","v":"Yes "},{"$f":"'[2]Economical indicators'!B179","v":1}]
[{"$f":"'[2]Economical indicators'!A180","v":"No"},{"$f":"'[2]Economical indicators'!B180","v":0}]
[]
[{"$f":"'[2]Economical indicators'!A181","v":"Type of cover"}]
[]
[{"$f":"'[2]Economical indicators'!A182","v":"Organic cover"},{"$f":"'[2]Economical indicators'!B182","v":0}]
[{"$f":"'[2]Economical indicators'!A183","v":"Mineral cover"},{"$f":"'[2]Economical indicators'!B183","v":-2}]
[{"$f":"'[2]Economical indicators'!A184","v":"Synthetic cover"},{"$f":"'[2]Economical indicators'!B184","v":0}]
[]
[{"$f":"'[2]Economical indicators'!A185","v":"% of the waste volume occupied by the cover  :"}]
[]
[{"$f":"'[2]Economical indicators'!A186","v":"< 10 %"},{"$f":"'[2]Economical indicators'!B186","v":-1}]
[{"$f":"'[2]Economical indicators'!A187","v":"> 10 %"},{"$f":"'[2]Economical indicators'!B187","v":-2}]
[]
[{"$f":"'[2]Economical indicators'!A189","v":"Waste composition (from table)"},"factor",{"$f":"'[2]Economical indicators'!$D$189","v":20},null,null,{"$f":"'[2]Economical indicators'!G189","v":0.10416666666666667},{"$f":"IF(D233= 1,\"\", F232)","v":""}]
[{"$f":"'[2]Economical indicators'!A190","v":"Factor"},{"$f":"'[2]Economical indicators'!B190","v":20},null,{"$f":"'Economical form'!B108","v":1}]
[null,null,null,"Layer 1","Layer 2","Layer 3","Layer 4","Layer 5","Number of layers",null,{"$f":"'[2]Economical indicators'!G193","v":5.2083333333333336E-2},{"$f":"IF(D236=TRUE, K234,\" \")","v":" "}]
[{"$f":"'[2]Economical indicators'!A193","v":"Waste homogeneity (for each layer)"},null,"List choice",null,null,null,null,null,{"$f":"COUNTIF('Economical indicators'!D236:H236,TRUE)","v":0}]
[{"$f":"'[2]Economical indicators'!A194","v":"Homogeneous at small scale"},{"$f":"'[2]Economical indicators'!B194","v":10},"Coché",false,false]
[{"$f":"'[2]Economical indicators'!A195","v":"Heterogeneous at small scale"},{"$f":"'[2]Economical indicators'!B195","v":0},"% entré"]
[null,null,"% selectionné",{"$f":"IF(D236=TRUE,'Waste description'!D92, 0)","v":0},{"$f":"IF(E236=TRUE,'Waste description'!D93, 0)","v":0},{"$f":"IF(F236=TRUE,'Waste description'!D94, 0)","v":0},{"$f":"IF(G236=TRUE,'Waste description'!D95, 0)","v":0},{"$f":"IF(H236=TRUE,'Waste description'!D96, 0)","v":0}]
[]
[{"$f":"'[2]Economical indicators'!A198","v":"Hazardous waste :"}]
[null,null,null,null,null,{"$f":"'[2]Economical indicators'!$G$198","v":0},{"$f":"IF(AND(D241<>\"\",D241<>4), F241,\"\")","v":""}]
[{"$f":"'[2]Economical indicators'!A199","v":"Assessed"}]
[{"$f":"'[2]Economical indicators'!A200","v":"Possible"}]
[{"$f":"'[2]Economical indicators'!A201","v":"None"}]
[{"$f":"'[2]Economical indicators'!A202","v":"Unknown"}]
[]
[{"$f":"'[2]Economical indicators'!A204","v":"Monolandfill :"}]
[null,null,null,null,null,{"$f":"'[2]Economical indicators'!$G$204","v":0},{"$f":"IF(AND(D248<>\"\",D248<>4), F248,\"\")","v":""}]
[{"$f":"'[2]Economical indicators'!A205","v":"Yes"}]
[{"$f":"'[2]Economical indicators'!A206","v":"No"}]
[]
[]
["Remaining Volume [m³] - not used for score"]
[]
["Estimated"]
["Mesured"]

{"sheet":"ELIF RAW DATA","index":16,"n_rows":5,"n_cols":434,"rows_kept":5,"cut":false,"hidden":false,"merged":[[2,379,2,396],[2,328,2,331],[2,324,2,327],[2,320,2,323],[2,316,2,319],[2,304,2,307],[2,300,2,303],[1,339,1,342],[2,343,2,360],[2,361,2,378],[2,312,2,315],[1,253,1,256],[1,258,1,260],[1,262,1,264],[1,270,1,271],[0,280,0,432],[0,251,0,279],[1,280,1,285],[2,220,2,222],[1,251,1,252],[1,265,1,269],[2,397,2,414],[2,296,2,299],[1,343,1,432],[2,415,2,432],[1,288,1,331],[2,308,2,311],[2,288,2,291],[2,292,2,295],[1,286,1,287],[1,273,1,279],[2,224,2,228],[1,230,1,231],[1,232,1,234],[0,187,0,250],[2,218,2,219],[2,152,2,156],[2,157,2,161],[2,162,2,166],[2,167,2,171],[2,172,2,176],[2,177,2,181],[2,182,2,187],[2,192,2,193],[2,194,2,195],[2,196,2,197],[2,198,2,199],[2,200,2,201],[2,202,2,203],[2,204,2,205],[2,122,2,123],[2,137,2,141],[2,142,2,146],[2,147,2,151],[1,206,1,207],[1,188,1,189],[1,112,1,123],[2,112,2,113],[2,114,2,115],[2,116,2,117],[2,118,2,119],[2,120,2,121],[1,192,1,205],[0,0,0,3],[1,0,1,1],[0,4,0,22],[1,125,1,127],[1,128,1,130],[0,23,0,186],[1,137,1,161],[1,162,1,186],[1,29,1,34],[1,132,1,135],[1,35,1,38],[1,6,1,16],[1,23,1,28],[1,208,1,215],[1,241,1,245],[1,249,1,250],[1,218,1,229],[1,235,1,240],[1,108,1,111],[1,41,1,50],[1,51,1,65],[1,99,1,107],[1,246,1,248],[2,6,2,8],[2,9,2,12],[2,13,2,16],[2,17,2,20],[2,51,2,53],[2,92,2,96],[1,67,1,96],[2,82,2,86],[2,77,2,81],[2,72,2,76],[2,67,2,71],[2,54,2,56],[2,57,2,59],[2,60,2,62],[2,63,2,65],[2,87,2,91]]}
["Generic information",null,null,null,"Regulatory information",null,null,null,null,null,null,null,null,null,null,null,null,null,null,null,null,null,null,"Landfill ID Card",null,null,null,null,null,null,null,null,null,null,null,null,null,null,null,null,null,null,null,null,null,null,null,null,null,null,null,null,null,null,null,null,null,null,null,null,null,null,null,null,null,null,null,null,null,null,null,null,null,null,null,null,null,null,null,null,null,null,null,null,null,null,null,null,null,null,null,null,null,null,null,null,null,null,null,null,null,null,null,null,null,null,null,null,null,null,null,null,null,null,null,null,null,null,null,null,null,null,null,null,null,null,null,null,null,null,null,null,null,null,null,null,null,null,null,null,null,null,null,null,null,null,null,null,null,null,null,null,null,null,null,null,null,null,null,null,null,null,null,null,null,null,null,null,null,null,null,null,null,null,null,null,null,null,null,null,null,null,null,null,null,null,null,"Surroundings",null,null,null,null,null,null,null,null,null,null,null,null,null,null,null,null,null,null,null,null,null,null,null,null,null,null,null,null,null,null,null,null,null,null,null,null,null,null,null,null,null,null,null,null,null,null,null,null,null,null,null,null,null,null,null,null,null,null,null,null,null,null,null,"Landfill geometry",null,null,null,null,null,null,null,null,null,null,null,null,null,null,null,null,null,null,null,null,null,null,null,null,null,null,null,null,"Landfill Waste"]
["ELIF datasheet responsible",null,"Creation date:","Date of updating:","Regional policy encouraging ELFM:","Regional incentives encouraging ELFM:","Dates of landfill ban",null,null,null,null,null,null,null,null,null,null,null,null,null,null,null,null,"Landfill name and synonyms:",null,null,null,null,null,"Adresse",null,null,null,null,null,"Landfill coordinates:",null,null,null,"Land plot codes","Administration in charge:","Ownership:",null,null,null,null,null,null,null,null,null,"Landfill operator(s):",null,null,null,null,null,null,null,null,null,null,null,null,null,null,"Legal status of the landfill:","Permits:",null,null,null,null,null,null,null,null,null,null,null,null,null,null,null,null,null,null,null,null,null,null,null,null,null,null,null,null,null,null,null,"Landfill status and dates:",null,null,null,null,null,null,null,null,"Landfill monitoring:",null,null,null,"Hisctorical information",null,null,null,null,null,null,null,null,null,null,null,"Fence/site protection:","Buried Volume:",null,null,"Remaining Volume:",null,null,"Remediation costs [€]:","Aftercare costs [€]",null,null,null,"Warranties given:","Studies",null,null,null,null,null,null,null,null,null,null,null,null,null,null,null,null,null,null,null,null,null,null,null,null,"Samplings",null,null,null,null,null,null,null,null,null,null,null,null,null,null,null,null,null,null,null,null,null,null,null,null,"Land planning:","Current use:",null,"Tourism","Territorial strategy aspects:","Surroundings : ",null,null,null,null,null,null,null,null,null,null,null,null,null,"Land pressure:",null,"General Risk evaluation:",null,null,null,null,null,null,null,null,null,"Environmental issues:",null,null,null,null,null,null,null,null,null,null,null,"Social support:",null,"Biodiversity:",null,null,"Access for landfill mining operations:",null,null,null,null,null,"Facilities for landfill mining operations:",null,null,null,null,"Leachates treatment plant on site:",null,null,"Leachates treatment plant nearby:",null,"Landfill Morphology:",null,"Surface:",null,null,null,"Volume","Waste heights/depth:",null,null,"Fragmentation:","Stability of the waste mass:",null,null,"Top layer:",null,null,null,null,"Bottom layer:",null,"Emissions to air:","Biogas aerial collection system:",null,null,null,null,null,null,"Dates",null,null,null,null,null,"Main waste type",null,"Specific waste stream",null,null,null,null,null,null,null,null,null,null,null,null,null,null,null,null,null,null,null,null,null,null,null,null,null,null,null,null,null,null,null,null,null,null,null,null,null,null,null,null,null,null,null,"Hazardous waste:","Radioactive waste:","Hazardous hospital waste:","Hazardous military waste:","Asbestos:","Main physical state:","Leachates:","Daily cover:",null,null,null,"Waste composition:"]
[null,null,null,null,null,null,"Stream 1",null,null,"Stream 2",null,null,null,"Stream 3",null,null,null,"Site specific ELFM facilitation procedures:",null,null,null,"Regional authorization for in-situ relandfilling:","Regional authorization for relandfilling at another landfill:",null,null,null,null,null,null,null,null,null,null,null,null,null,null,null,null,null,null,null,null,null,null,null,null,null,null,null,null,"Operator 1",null,null,"Operator 2",null,null,"Operator 3",null,null,"Operator 4",null,null,"Operator 5",null,null,null,"Permit1",null,null,null,null,"Permit2",null,null,null,null,"Permit3",null,null,null,null,"Permit4",null,null,null,null,"Permit5",null,null,null,null,"Permit6",null,null,null,null,null,null,null,null,null,null,null,null,null,null,null,null,null,null,null,"Hisctoric 1",null,"Hisctoric 2",null,"Hisctoric 3",null,"Hisctoric 4",null,"Hisctoric 5",null,"Hisctoric 6",null,null,null,null,null,null,null,null,null,null,null,null,null,null,"Studies 1",null,null,null,null,"Studies 2",null,null,null,null,"Studies 3",null,null,null,null,"Studies 4",null,null,null,null,"Studies 5",null,null,null,null,"Sampling 1",null,null,null,null,"Sampling 2",null,null,null,null,"Sampling 3",null,null,null,null,"Sampling 4",null,null,null,null,"Sampling 5",null,null,null,null,null,null,null,null,null,"Natural :",null,"Agricultural : ",null,"Forest : ",null,"Residential :",null,"Recreational/tourristic :",null,"Economical/services :",null,"Industrial :",null,null,null,null,null,null,null,null,null,null,null,null,null,"Specific environmental issue",null,"Surface water contamination",null,null,"Geological context","Groundwater vulnerability",null,null,null,null,"Erosion",null,null,null,null,null,null,null,null,null,null,null,null,null,null,null,null,null,null,null,null,null,null,null,null,null,null,null,null,null,null,null,null,null,null,null,null,null,null,null,null,null,null,null,null,null,null,null,null,null,null,null,null,null,null,null,null,null,null,"Dredging sludge",null,null,null,"Construction waste",null,null,null,"Water purification sludge",null,null,null,"Gypsum",null,null,null,"Fly ash",null,null,null,"Asbestos",null,null,null,"Slags",null,null,null,"Mining waste",null,null,null,"Lime",null,null,null,"Contaminated soils",null,null,null,"Others",null,null,null,null,null,null,null,null,null,null,null,null,null,null,"Layer 1",null,null,null,null,null,null,null,null,null,null,null,null,null,null,null,null,null,"Layer 2 ",null,null,null,null,null,null,null,null,null,null,null,null,null,null,null,null,null,"Layer 3",null,null,null,null,null,null,null,null,null,null,null,null,null,null,null,null,null,"Layer 4",null,null,null,null,null,null,null,null,null,null,null,null,null,null,null,null,null,"Layer 5"]
["Name:","Position:","Creation date:","Date of updating:","Regional policy encouraging ELFM:","Regional incentives encouraging ELFM:","Name of the stream","Regional code of the restricted stream","Date of applicability of the restriction","Name of the stream","Regional code of the restricted stream","Date of applicability of the restriction","Type of restriction:","Name of the stream","Regional code of the restricted stream","Date of applicability of the restriction","Type of restriction:","Référence","Signature date","Expiration date","Summary","Regional authorization for in-situ relandfilling:","Regional authorization for relandfilling at another landfill:","Main denomination:","Synonym 1:","Synonym 2:","Synonym 3:","Landfill reference:","ELIF reference:","Country","Municipality","Postal Code","Street","N°","NUTS","X","Y","Z","Reference of the system","Land plot codes","Administration in charge:","Name of owner 1","Status 1:","Name of owner 2","Status 2:","Name of owner 3","Status 3:","Name of owner 4","Status 4:","Name of owner 5","Status 5:","Name of operator 1","Date of beginning 1","Date of end 1","Name of operator 2","Date of beginning 2","Date of end 2","Name of operator 3","Date of beginning 3","Date of end 3","Name of operator 4","Date of beginning 4","Date of end 4","Name of operator 5","Date of beginning 5","Date of end 5","Legal status of the landfill:","Reference","date of autorisation","expiration date","nature of permit","Permit Holder","Reference","date of autorisation","expiration date","nature of permit","Permit Holder","Reference","date of autorisation","expiration date","nature of permit","Permit Holder","Reference","date of autorisation","expiration date","nature of permit","Permit Holder","Reference","date of autorisation","expiration date","nature of permit","Permit Holder","Reference","date of autorisation","expiration date","nature of permit","Permit Holder","Landfill type:","Period of main activities","controlled/wild dump","abandoned/still in operation at data sheet date","rehabilitated/not rehabilitated","Begin of landfill operation","End of landfill operation","Begin of rehabilitation","End of rehabilitation","Begin of aftercare period","End of aftercare period","monitored/not monitored at data sheet date","company/administration in charge of the monitoring","begin of monitoring","end of monitoring","Date","Description","Date","Description","Date","Description","Date","Description","Date","Description","Date","Description","Fence/site protection:","Number (m³)","measured/estimated","method used for obtaining the volume","Number (m³)","measured/estimated","method used for obtaining the volume","LFM costs (waste excavation and remediation costs) :","Annual aftercare costs [€]","Start of aftercare procedure [Date : dd-mm-yyyy] :","End of aftercare procedure [Date : dd-mm-yyyy] : ","Total aftercare costs remaining at date of data sheet [€] :","Warranties given:","Reference","Title","date of completion","name of autor","Confidentiality","Reference","Title","date of completion","name of autor","Confidentiality","Reference","Title","date of completion","name of autor","Confidentiality","Reference","Title","date of completion","name of autor","Confidentiality","Reference","Title","date of completion","name of autor","Confidentiality","Reference","date of completion","Author","Sampling Method","Analysis","Reference","date of completion","Author","Sampling Method","Analysis","Reference","date of completion","Author","Sampling Method","Analysis","Reference","date of completion","Author","Sampling Method","Analysis","Reference","date of completion","Author","Sampling Method","Analysis","Land planning:","Use","Specifications","Presence of a touristic area nearby ","Territorial strategy aspects:","Present","Potential","Present","Potential","Present","Potential","Present","Potential","Present","Potential","Present","Potential","Present","Potential","Land pressure text:","Land pressure number (Bertaud's model):","Flood","Flooding risk level","Fire","Risk of landfill’s collapse","Person accident","Direct exposition to waste, (bio)gas and/or leachate","Other","Unknown","Distance from nearest accomodations [m]","Olfactory pollution","Yes/No","description","Contamination / risk","Analysis ","description","risk","Average level of upper groundwater table","Contamination or risks","description","Groundwater exploitation","Include in a groundwater protection zone (m)","Erosion","Social support","Description","Valuable biodiversity on site","Description","Site in Natura 2000 zone :","Paved road","Heavy trucks:","Distance to main road (m)","Distance to nearest harbor (m)","Distance to waterways (m)","Distance to rail station (m)","Incineration plant","Cement factories","Waste treatment plant (in general)","Landfill for hazardous waste","Landfill for not hazardous waste","Landfill producing leachates","Status","Description","Description","Distance (m)","Landfill morphology","Surface state","Total surface of the site (m²)","Origin of the data","Total surface occupied by waste (m²)","Origin of the data","Total wolume of the waste (m³)","Maximal (m)","Minimal (m)","Average (most present) thikness of wastes (m)","Fragmentation:","Slopes:","Water table:","Risk appreciation for future excavation works:","List","Watertightness","Rainwater drainage","Gas drainage","Type of cover","Watertightness","Leachate drainage","Emissions to air:","Presence","Description","Pipes","Status","Start date","End date","Valorisation system","Beginning of landfilling","End of landfilling","Beginning of rehabilitation operations)","End of rehabilitation operations","Beginning of aftercare period","End of aftercare period","Main waste type","Monolandfill","Name","EWC","%","specification","Name","EWC","%","specification","Name","EWC","%","specification","Name","EWC","%","specification","Name","EWC","%","specification","Name","EWC","%","specification","Name","EWC","%","specification","Name","EWC","%","specification","Name","EWC","%","specification","Name","EWC","%","specification","Name","EWC","%","specification","Hazardous waste:","Radioactive waste:","Hazardous hospital waste:","Hazardous military waste:","Asbestos:","Main physical state:","Leachates:","Use of daily cover : ","Type of cover","Origin of cover products","%","Zone name","Height [m]","Volume [m³]","Density [T/m³]","Tons buried [T]","Physical State","Homogeneity (macro)","Homogeneity (micro)","% Fines ","Main type","Gas content [%]","Water content [%]","T° [°C]","Presence of a water table","Begin landfilling","End landfilling","Composition","Recyclability potential","Zone name","Height [m]","Volume [m³]","Density [T/m³]","Tons buried [T]","Physical State","Homogeneity (macro)","Homogeneity (micro)","% Fines ","Main type","Gas content [%]","Water content [%]","T° [°C]","Presence of a water table","Begin landfilling","End landfilling","Composition","Recyclability potential","Zone name","Height [m]","Volume [m³]","Density [T/m³]","Tons buried [T]","Physical State","Homogeneity (macro)","Homogeneity (micro)","% Fines ","Main type","Gas content [%]","Water content [%]","T° [°C]","Presence of a water table","Begin landfilling","End landfilling","Composition","Recyclability potential","Zone name","Height [m]","Volume [m³]","Density [T/m³]","Tons buried [T]","Physical State","Homogeneity (macro)","Homogeneity (micro)","% Fines ","Main type","Gas content [%]","Water content [%]","T° [°C]","Presence of a water table","Begin landfilling","End landfilling","Composition","Recyclability potential","Zone name","Height [m]","Volume [m³]","Density [T/m³]","Tons buried [T]","Physical State","Homogeneity (macro)","Homogeneity (micro)","% Fines ","Main type","Gas content [%]","Water content [%]","T° [°C]","Presence of a water table","Begin landfilling","End landfilling","Composition","Recyclability potential","Contamination of the soil surrounding the landfill"]
[{"$f":"'Additional Information'!B9","v":0},{"$f":"'Additional Information'!D9","v":0},{"$f":"'Additional Information'!B11","v":"00:00:00"},{"$f":"'Additional Information'!B13","v":"00:00:00"},{"$f":"'Additional Information'!B17","v":0},{"$f":"'Additional Information'!B19","v":0},{"$f":"'Additional Information'!A23","v":0},{"$f":"'Additional Information'!B23","v":0},{"$f":"'Additional Information'!C23","v":"00:00:00"},{"$f":"'Additional Information'!A24","v":0},{"$f":"'Additional Information'!F24","v":0},{"$f":"'Additional Information'!G24","v":"00:00:00"},{"$f":"'Additional Information'!H24","v":0},{"$f":"'Additional Information'!I25","v":0},{"$f":"'Additional Information'!J25","v":0},{"$f":"'Additional Information'!K25","v":"00:00:00"},{"$f":"'Additional Information'!L25","v":0},{"$f":"'Additional Information'!B28","v":0},{"$f":"'Additional Information'!B29","v":0},{"$f":"'Additional Information'!B30","v":"00:00:00"},{"$f":"'Additional Information'!B31","v":0},{"$f":"'Additional Information'!B35","v":0},{"$f":"'Additional Information'!B37","v":0},{"$f":"'LF description'!B8","v":"LF1 Name"},{"$f":"'LF description'!B9","v":0},{"$f":"'LF description'!B10","v":0},{"$f":"'LF description'!B11","v":0},{"$f":"'LF description'!B12","v":0},{"$f":"'LF description'!A6","v":"LANDFILL 1"},{"$f":"'LF description'!B13","v":0},{"$f":"'LF description'!B14","v":0},{"$f":"'LF description'!B15","v":0},{"$f":"'LF description'!B16","v":0},{"$f":"'LF description'!D16","v":0},{"$f":"'LF description'!B17","v":0},{"$f":"'LF description'!B18","v":0},{"$f":"'LF description'!B19","v":0},null,"WGS84",{"$f":"'LF description'!D8","v":0},{"$f":"'LF description'!B21","v":0},{"$f":"'LF description'!B25","v":0},{"$f":"'LF description'!C25","v":0},{"$f":"'LF description'!B26","v":0},{"$f":"'LF description'!C26","v":0},{"$f":"'LF description'!B27","v":0},{"$f":"'LF description'!C27","v":0},{"$f":"'LF description'!B28","v":0},{"$f":"'LF description'!C28","v":0},{"$f":"'LF description'!B29","v":0},{"$f":"'LF description'!C29","v":0},{"$f":"'Additional Information'!B52","v":0},{"$f":"'Additional Information'!C52","v":0},{"$f":"'Additional Information'!D52","v":0},{"$f":"'Additional Information'!B53","v":0},{"$f":"'Additional Information'!C53","v":0},{"$f":"'Additional Information'!D53","v":0},{"$f":"'Additional Information'!B54","v":0},{"$f":"'Additional Information'!C54","v":0},{"$f":"'Additional Information'!D54","v":0},{"$f":"'Additional Information'!B55","v":0},{"$f":"'Additional Information'!C55","v":0},{"$f":"'Additional Information'!D55","v":0},{"$f":"'Additional Information'!B56","v":0},{"$f":"'Additional Information'!C56","v":0},{"$f":"'LF description'!D38","v":0},{"$f":"OFFSET('Economical indicators'!A34, 'Economical indicators'!D34,0)","v":0},{"$f":"'Additional Information'!A43","v":0},{"$f":"'Additional Information'!B43","v":0},{"$f":"'Additional Information'!C43","v":0},{"$f":"'Additional Information'!D43","v":0},{"$f":"'Additional Information'!E43","v":0},{"$f":"'Additional Information'!A44","v":0},{"$f":"'Additional Information'!B44","v":0},{"$f":"'Additional Information'!C44","v":0},{"$f":"'Additional Information'!D44","v":0},{"$f":"'Additional Information'!E44","v":0},{"$f":"'Additional Information'!A45","v":0},{"$f":"'Additional Information'!B45","v":0},{"$f":"'Additional Information'!C45","v":0},{"$f":"'Additional Information'!D45","v":0},{"$f":"'Additional Information'!E45","v":0},{"$f":"'Additional Information'!A46","v":0},{"$f":"'Additional Information'!B46","v":0},{"$f":"'Additional Information'!C46","v":0},{"$f":"'Additional Information'!D46","v":0},{"$f":"'Additional Information'!E46","v":0},{"$f":"'Additional Information'!A47","v":0},{"$f":"'Additional Information'!B47","v":0},{"$f":"'Additional Information'!C47","v":0},{"$f":"'Additional Information'!D47","v":0},{"$f":"'Additional Information'!E47","v":0},{"$f":"'Additional Information'!A48","v":0},{"$f":"'Additional Information'!B48","v":0},{"$f":"'Additional Information'!C48","v":0},{"$f":"'Additional Information'!D48","v":0},{"$f":"'Additional Information'!E48","v":0},{"$f":"'Additional Information'!B58","v":0},{"$f":"OFFSET('Technical indicators'!A15,'Technical indicators'!D15,0)","v":0},{"$f":"OFFSET('Technical indicators'!A4,'Technical indicators'!D4,0)","v":0},{"$f":"'Additional Information'!B61","v":0},{"$f":"OFFSET('Technical indicators'!A9,'Technical indicators'!D9,0)","v":0},{"$f":"'Additional Information'!B64","v":"00:00:00"},{"$f":"'Additional Information'!D64","v":"00:00:00"},{"$f":"'Additional Information'!B66","v":"00:00:00"},{"$f":"'Additional Information'!D66","v":"00:00:00"},{"$f":"'Additional Information'!B68","v":"00:00:00"},{"$f":"'Additional Information'!D68","v":"00:00:00"},{"$f":"'Additional Information'!B71","v":0},{"$f":"'Additional Information'!B72","v":0},{"$f":"'Additional Information'!B73","v":"00:00:00"},{"$f":"'Additional Information'!D73","v":"00:00:00"},{"$f":"'Additional Information'!A96","v":"00:00:00"},{"$f":"'Additional Information'!B96","v":0},{"$f":"'Additional Information'!A97","v":"00:00:00"},{"$f":"'Additional Information'!B97","v":0},{"$f":"'Additional Information'!A98","v":"00:00:00"},{"$f":"'Additional Information'!B98","v":0},{"$f":"'Additional Information'!A99","v":"00:00:00"},{"$f":"'Additional Information'!B99","v":0},{"$f":"'Additional Information'!A100","v":"00:00:00"},{"$f":"'Additional Information'!B100","v":0},{"$f":"'Additional Information'!A101","v":"00:00:00"},{"$f":"'Additional Information'!B101","v":0},{"$f":"OFFSET('Economical indicators'!A42,'Economical indicators'!D42,0)","v":0},{"$f":"OFFSET('Economical indicators'!A51,'Economical indicators'!D51,0)","v":0},{"$f":"OFFSET('Economical indicators'!A47,'Economical indicators'!D47,0)","v":0},{"$f":"'Economical form'!B23","v":0},{"$f":"'Economical form'!B25","v":0},{"$f":"OFFSET('Economical indicators'!A254,'Economical indicators'!D254,0)","v":0},{"$f":"'Economical form'!B27","v":0},{"$f":"'Economical form'!$B$36","v":1},{"$f":"'Economical form'!$B$39","v":1},{"$f":"'Economical form'!B40","v":"00:00:00"},{"$f":"'Economical form'!B41","v":"2021-08-20"},{"$f":"'Economical form'!B43","v":1},{"$f":"'Additional Information'!B76","v":0},{"$f":"'Additional Information'!A80","v":0},{"$f":"'Additional Information'!B80","v":0},{"$f":"'Additional Information'!C80","v":0},{"$f":"'Additional Information'!D80","v":0},{"$f":"'Additional Information'!E80","v":0},{"$f":"'Additional Information'!A81","v":0},{"$f":"'Additional Information'!B81","v":0},{"$f":"'Additional Information'!C81","v":0},{"$f":"'Additional Information'!D81","v":0},{"$f":"'Additional Information'!E81","v":0},{"$f":"'Additional Information'!A82","v":0},{"$f":"'Additional Information'!B82","v":0},{"$f":"'Additional Information'!C82","v":0},{"$f":"'Additional Information'!D82","v":0},{"$f":"'Additional Information'!E82","v":0},{"$f":"'Additional Information'!A83","v":0},{"$f":"'Additional Information'!B83","v":0},{"$f":"'Additional Information'!C83","v":0},{"$f":"'Additional Information'!D83","v":0},{"$f":"'Additional Information'!E83","v":0},{"$f":"'Additional Information'!A84","v":0},{"$f":"'Additional Information'!B84","v":0},{"$f":"'Additional Information'!C84","v":0},{"$f":"'Additional Information'!D84","v":0},{"$f":"'Additional Information'!E84","v":0},{"$f":"'Additional Information'!A88","v":0},{"$f":"'Additional Information'!B88","v":"00:00:00"},{"$f":"'Additional Information'!C88","v":0},{"$f":"'Additional Information'!D88","v":0},{"$f":"'Additional Information'!E88","v":0},{"$f":"'Additional Information'!A89","v":0},{"$f":"'Additional Information'!B89","v":0},{"$f":"'Additional Information'!C89","v":0},{"$f":"'Additional Information'!D89","v":0},{"$f":"'Additional Information'!E89","v":0},{"$f":"'Additional Information'!A90","v":0},{"$f":"'Additional Information'!B90","v":0},{"$f":"'Additional Information'!C90","v":0},{"$f":"'Additional Information'!D90","v":0},{"$f":"'Additional Information'!E90","v":0},{"$f":"'Additional Information'!A91","v":0},{"$f":"'Additional Information'!B91","v":0},{"$f":"'Additional Information'!C91","v":0},{"$f":"'Additional Information'!D91","v":0},{"$f":"'Additional Information'!E91","v":0},{"$f":"'Additional Information'!A92","v":0},{"$f":"'Additional Information'!B92","v":0},{"$f":"'Additional Information'!C92","v":0},{"$f":"'Additional Information'!D92","v":0},{"$f":"'Additional Information'!E92","v":0},{"$f":"'Social form'!B15","v":0},{"$f":"OFFSET('Social indicators'!A7,'Social indicators'!D7,0)","v":0},{"$f":"'Social form'!B19","v":0},{"$f":"OFFSET('Social indicators'!A79,'Social indicators'!D79,0)","v":0},{"$f":"OFFSET('Social indicators'!A19,'Social indicators'!D19,0)","v":0},{"$f":"'Social indicators'!D27","v":0},{"$f":"'Social indicators'!D28","v":0},{"$f":"'Social indicators'!D33","v":0},{"$f":"'Social indicators'!D34","v":0},{"$f":"'Social indicators'!D39","v":0},{"$f":"'Social indicators'!D40","v":0},{"$f":"'Social indicators'!D45","v":0},{"$f":"'Social indicators'!D46","v":0},{"$f":"'Social indicators'!D51","v":0},{"$f":"'Social indicators'!D52","v":0},{"$f":"'Social indicators'!D57","v":0},{"$f":"'Social indicators'!D58","v":0},{"$f":"'Social indicators'!D63","v":0},{"$f":"'Social indicators'!D64","v":0},{"$f":"OFFSET('Economical indicators'!A82,'Economical indicators'!D82,0)","v":0},null,{"$f":"'Environmental indicators'!D4","v":0},{"$f":"OFFSET('Environmental indicators'!A78,'Environmental indicators'!D78,0)","v":0},{"$f":"'Environmental indicators'!D5","v":0},{"$f":"'Environmental indicators'!D6","v":0},{"$f":"'Environmental indicators'!D7","v":0},{"$f":"'Environmental indicators'!D8","v":0},{"$f":"'Environmental indicators'!D9","v":0},{"$f":"'Environmental indicators'!D10","v":0},{"$f":"'Social form'!B13","v":0},null,{"$f":"OFFSET('Environmental indicators'!$A$13, 'Environmental indicators'!$D$13,0)","v":0},{"$f":"'Environmental form'!B23","v":0},{"$f":"OFFSET('Environmental indicators'!$A$19, 'Environmental indicators'!$D$19,0)","v":0},{"$f":"'Environmental form'!B27","v":0},{"$f":"'Environmental form'!B28","v":0},{"$f":"OFFSET('Environmental indicators'!$A$29, 'Environmental indicators'!$D$29,0)","v":0},{"$f":"'Environmental form'!B38","v":0},{"$f":"OFFSET('Environmental indicators'!$A$40, 'Environmental indicators'!$D$40,0)","v":0},{"$f":"'Environmental form'!B39","v":0},{"$f":"OFFSET('Environmental indicators'!$A$36, 'Environmental indicators'!$D$36,0)","v":0},{"$f":"OFFSET('Environmental indicators'!$A$49, 'Environmental indicators'!$D$49,0)","v":0},{"$f":"OFFSET('Environmental indicators'!$A$71, 'Environmental indicators'!$D$71,0)","v":0},{"$f":"OFFSET('Social indicators'!A69,'Social indicators'!D69,0)","v":0},{"$f":"'Social form'!B36","v":0},{"$f":"OFFSET('Environmental indicators'!$A$62, 'Environmental indicators'!$D$62,0)","v":0},{"$f":"'Environmental form'!B46","v":0},{"$f":"OFFSET('Environmental indicators'!$A$66, 'Environmental indicators'!$D$66,0)","v":0},{"$f":"OFFSET('Economical indicators'!A90,'Economical indicators'!D90,0)","v":0},{"$f":"OFFSET('Economical indicators'!A95,'Economical indicators'!D95,0)","v":0},{"$f":"OFFSET('Economical indicators'!A102,'Economical indicators'!D102,0)","v":0},{"$f":"OFFSET('Economical indicators'!A107,'Economical indicators'!D107,0)","v":0},{"$f":"'Economical form'!B56","v":0},{"$f":"'Economical form'!B57","v":0},{"$f":"OFFSET('Economical indicators'!A117,'Economical indicators'!D117,0)","v":0},{"$f":"OFFSET('Economical indicators'!A117,'Economical indicators'!E117,0)","v":0},{"$f":"OFFSET('Economical indicators'!A117,'Economical indicators'!F117,0)","v":0},{"$f":"OFFSET('Economical indicators'!A117,'Economical indicators'!G117,0)","v":0},{"$f":"OFFSET('Economical indicators'!A117,'Economical indicators'!H117,0)","v":0},{"$f":"OFFSET('Environmental indicators'!A84,'Environmental indicators'!D84,0)","v":0},{"$f":"OFFSET('Economical indicators'!A126,'Economical indicators'!D126,0)","v":0},{"$f":"'Technical form'!A16","v":0},{"$f":"'Technical form'!A20","v":0},{"$f":"OFFSET('Economical indicators'!A133,'Economical indicators'!D133,0)","v":0},{"$f":"OFFSET('Technical indicators'!A47,'Technical indicators'!D47,0)","v":0},{"$f":"OFFSET('Technical indicators'!A56,'Technical indicators'!D56,0)","v":0},{"$f":"'Waste description'!B6","v":0},{"$f":"'Waste description'!F6","v":0},{"$f":"'Waste description'!B7","v":0},{"$f":"'Waste description'!F7","v":0},{"$f":"'Waste description'!B8","v":0},{"$f":"'Technical form'!B40","v":0},{"$f":"'Technical form'!B41","v":0},{"$f":"OFFSET('Technical indicators'!A65,'Technical indicators'!D65,0)","v":0},{"$f":"OFFSET('Economical indicators'!A140,'Economical indicators'!D140,0)","v":0},{"$f":"OFFSET('Technical indicators'!A73,'Technical indicators'!D73,0)","v":0},{"$f":"OFFSET('Technical indicators'!A79,'Technical indicators'!D79,0)","v":0},{"$f":"OFFSET('Technical indicators'!A86,'Technical indicators'!D86,0)","v":0},null,{"$f":"OFFSET('Technical indicators'!A93,'Technical indicators'!D93,0)","v":0},{"$f":"OFFSET('Technical indicators'!A98,'Technical indicators'!D98,0)","v":0},{"$f":"OFFSET('Technical indicators'!A103,'Technical indicators'!D103,0)","v":0},{"$f":"OFFSET('Technical indicators'!A108,'Technical indicators'!D108,0)","v":0},{"$f":"OFFSET('Technical indicators'!A116,'Technical indicators'!D116,0)","v":0},{"$f":"OFFSET('Technical indicators'!A121,'Technical indicators'!D121,0)","v":0},{"$f":"OFFSET('Environmental indicators'!$A$55, 'Environmental indicators'!D55,0)","v":0},{"$f":"OFFSET('Technical indicators'!A42,'Technical indicators'!D42,0)","v":0},{"$f":"'Technical form'!A31","v":0},{"$f":"'Technical form'!B25","v":0},{"$f":"'Technical form'!B26","v":0},{"$f":"'Technical form'!B27","v":"00:00:00"},{"$f":"'Technical form'!B28","v":"00:00:00"},{"$f":"'Technical form'!B29","v":0},{"$f":"'Additional Information'!B64","v":"00:00:00"},{"$f":"'Additional Information'!D64","v":"00:00:00"},{"$f":"'Additional Information'!B66","v":"00:00:00"},{"$f":"'Additional Information'!D66","v":"00:00:00"},{"$f":"'Additional Information'!B68","v":"00:00:00"},{"$f":"'Additional Information'!D68","v":"00:00:00"},{"$f":"OFFSET('Economical indicators'!A145,'Economical indicators'!D145,0)","v":0},{"$f":"OFFSET('Economical indicators'!A248,'Economical indicators'!D248,0)","v":0},{"$f":"'Economical form'!A79","v":"Dredging sludge* :"},null,{"$f":"'Economical form'!B79","v":0},{"$f":"OFFSET('Economical indicators'!$A$156,'Economical indicators'!E162,0)","v":0},{"$f":"'Economical form'!A80","v":"Construction waste*:"},null,{"$f":"'Economical form'!B80","v":0},{"$f":"OFFSET('Economical indicators'!$A$156,'Economical indicators'!E163,0)","v":0},{"$f":"'Economical form'!A81","v":"Water purification sludge* :"},null,{"$f":"'Economical form'!B81","v":0},{"$f":"OFFSET('Economical indicators'!$A$156,'Economical indicators'!E164,0)","v":0},{"$f":"'Economical form'!A82","v":"Gypsum :"},null,{"$f":"'Economical form'!B82","v":0},{"$f":"OFFSET('Economical indicators'!$A$156,'Economical indicators'!E165,0)","v":0},{"$f":"'Economical form'!A83","v":"Fly ash* :"},null,{"$f":"'Economical form'!B83","v":0},{"$f":"OFFSET('Economical indicators'!$A$156,'Economical indicators'!E166,0)","v":0},{"$f":"'Economical form'!A84","v":"Asbestos* :"},null,{"$f":"'Economical form'!B84","v":0},{"$f":"OFFSET('Economical indicators'!$A$156,'Economical indicators'!E167,0)","v":0},{"$f":"'Economical form'!A85","v":"Slags* :"},null,{"$f":"'Economical form'!B85","v":0},{"$f":"OFFSET('Economical indicators'!$A$156,'Economical indicators'!E168,0)","v":0},{"$f":"'Economical form'!A86","v":"Mining waste* :"},null,{"$f":"'Economical form'!B86","v":0},{"$f":"OFFSET('Economical indicators'!$A$156,'Economical indicators'!E169,0)","v":0},{"$f":"'Economical form'!A87","v":"Lime* :"},null,{"$f":"'Economical form'!B87","v":0},{"$f":"OFFSET('Economical indicators'!$A$156,'Economical indicators'!E170,0)","v":0},{"$f":"'Economical form'!A88","v":"Contaminated soil :"},"Re",{"$f":"'Economical form'!B88","v":0},{"$f":"OFFSET('Economical indicators'!$A$156,'Economical indicators'!E171,0)","v":0},{"$f":"'Economical form'!A89","v":"Other : …"},null,{"$f":"'Economical form'!B7492","v":0},{"$f":"OFFSET('Economical indicators'!$A$156,'Economical indicators'!E172,0)","v":0},{"$f":"OFFSET('Economical indicators'!A241,'Economical indicators'!D241,0)","v":0},{"$f":"OFFSET('Economical indicators'!A175,'Economical indicators'!D175,0)","v":0},{"$f":"OFFSET('Economical indicators'!A182,'Economical indicators'!D182,0)","v":0},{"$f":"OFFSET('Economical indicators'!A189,'Economical indicators'!D189,0)","v":0},{"$f":"OFFSET('Economical indicators'!A196,'Economical indicators'!D196,0)","v":0},{"$f":"OFFSET('Economical indicators'!A203,'Economical indicators'!D203,0)","v":0},{"$f":"OFFSET('Economical indicators'!A210,'Economical indicators'!D210,0)","v":0},{"$f":"OFFSET('Economical indicators'!A217,'Economical indicators'!D217,0)","v":"No"},{"$f":"OFFSET('Economical indicators'!A222,'Economical indicators'!D222,0)","v":0},{"$f":"'Economical form'!B105","v":0},{"$f":"OFFSET('Economical indicators'!A228,'Economical indicators'!D228,0)","v":0},{"$f":"RDM!A6","v":"Zone 1"},{"$f":"RDM!D6","v":0},{"$f":"RDM!E6","v":0},{"$f":"RDM!F6","v":0},{"$f":"RDM!G6","v":0},{"$f":"RDM!H6","v":0},{"$f":"RDM!I6","v":0},{"$f":"RDM!J6","v":0},{"$f":"RDM!K6","v":0},{"$f":"RDM!L6","v":0},{"$f":"RDM!M6","v":0},{"$f":"RDM!N6","v":0},{"$f":"RDM!O6","v":0},{"$f":"RDM!P6","v":0},{"$f":"RDM!Q6","v":0},{"$f":"RDM!R6","v":0},{"$f":"RDM!S6","v":0},{"$f":"RDM!T6","v":0},{"$f":"RDM!A7","v":"Zone 2"},{"$f":"RDM!D7","v":0},{"$f":"RDM!E7","v":0},{"$f":"RDM!F7","v":0},{"$f":"RDM!G7","v":0},{"$f":"RDM!H7","v":0},{"$f":"RDM!I7","v":0},{"$f":"RDM!J7","v":0},{"$f":"RDM!K7","v":0},{"$f":"RDM!L7","v":0},{"$f":"RDM!M7","v":0},{"$f":"RDM!N7","v":0},{"$f":"RDM!O7","v":0},{"$f":"RDM!P7","v":0},{"$f":"RDM!Q7","v":0},{"$f":"RDM!R7","v":0},{"$f":"RDM!S7","v":0},{"$f":"RDM!T7","v":0},{"$f":"RDM!A8","v":"Zone 3"},{"$f":"RDM!D8","v":0},{"$f":"RDM!E8","v":0},{"$f":"RDM!F8","v":0},{"$f":"RDM!G8","v":0},{"$f":"RDM!H8","v":0},{"$f":"RDM!I8","v":0},{"$f":"RDM!J8","v":0},{"$f":"RDM!K8","v":0},{"$f":"RDM!L8","v":0},{"$f":"RDM!M8","v":0},{"$f":"RDM!N8","v":0},{"$f":"RDM!O8","v":0},{"$f":"RDM!P8","v":0},{"$f":"RDM!Q8","v":0},{"$f":"RDM!R8","v":0},{"$f":"RDM!S8","v":0},{"$f":"RDM!T8","v":0},{"$f":"RDM!A9","v":"Zone 4"},{"$f":"RDM!D9","v":0},{"$f":"RDM!E9","v":0},{"$f":"RDM!F9","v":0},{"$f":"RDM!G9","v":0},{"$f":"RDM!H9","v":0},{"$f":"RDM!I9","v":0},{"$f":"RDM!J9","v":0},{"$f":"RDM!K9","v":0},{"$f":"RDM!L9","v":0},{"$f":"RDM!M9","v":0},{"$f":"RDM!N9","v":0},{"$f":"RDM!O9","v":0},{"$f":"RDM!P9","v":0},{"$f":"RDM!Q9","v":0},{"$f":"RDM!R9","v":0},{"$f":"RDM!S9","v":0},{"$f":"RDM!T9","v":0},{"$f":"RDM!A10","v":"Zone 5"},{"$f":"RDM!D10","v":0},{"$f":"RDM!E10","v":0},{"$f":"RDM!F10","v":0},{"$f":"RDM!G10","v":0},{"$f":"RDM!H10","v":0},{"$f":"RDM!I10","v":0},{"$f":"RDM!J10","v":0},{"$f":"RDM!K10","v":0},{"$f":"RDM!L10","v":0},{"$f":"RDM!M10","v":0},{"$f":"RDM!N10","v":0},{"$f":"RDM!O10","v":0},{"$f":"RDM!P10","v":0},{"$f":"RDM!Q10","v":0},{"$f":"RDM!R10","v":0},{"$f":"RDM!S10","v":0},{"$f":"RDM!T10","v":0},{"$f":"OFFSET('Environmental indicators'!A90,'Environmental indicators'!D90,0)","v":0}]

{"sheet":"Import Cedalion site visit","index":17,"n_rows":8,"n_cols":22,"rows_kept":8,"cut":false,"hidden":false,"merged":[[4,0,4,1],[4,2,4,4],[4,5,4,8],[4,9,4,10],[4,11,4,20],[5,11,5,12],[5,13,5,14],[5,15,5,16],[5,17,5,18],[5,19,5,20]]}
["Results of the site visit"]
[]
["Please copy the results of your site visit here."]
[]
["General information",null,"Criteria 3 - Volume",null,null,"Criteria 4 - Use",null,null,null,"Criteria 5 - Accessibility",null,"Criteria 6 - Surroundings",null,null,null,null,null,null,null,null,null,"General remarks"]
[null,null,null,null,null,null,null,null,null,null,null,"Residential",null,"Recreational / Touristic",null,"Agricultural",null,"Industrial",null,"Natural"]
["DLM ID","Landfill name","Surface area (m²)","Depth below ground level (m)","Height above ground level (m)","Type of cover","Surface conditions","Slope angle","Erosion","Paved roads?","Accessible with heavy equipment?","Present Res","Potential Res","Present Rec","Potential Rec","Present Agr","Potential Agr","Present Ind","Potential Ind","Present Nat","Potential Nat","Remarks"]
[1,"test",1000,-1,2,"Geomembrane","Grass","Flat","None","Y","Y","Y","Y","Y","Y","Y","Y","Y","N","N","Y","Only to test"]